Cogmind - Beta 11 X4 @@@ ROGUE MODE // 2021.05.02 @ 16:12:56 Player: aoemica Result: Establishing 0b11! Performance ------------- Evolutions (9) 4500 Regions Visited (37) 7400 Robots Destroyed (549) 2745 Value Destroyed (33068) 33068 Prototype IDs (168) 3360 Alien Tech Used (10) 2000 Bonus (36111) 36111 TOTAL SCORE: 89184 Bonus ------- High Alert Combat Kills 2505 Follower Combat Kills 4625 Entered Garrisons 1600 Used RIF Installer 4000 Network Hubs Disabled 200 Aligned with FarCom 300 A7 Reached Mainframe 300 Met R17 at Cetus 500 Destroyed MAIN.C Guards 500 Met MAIN.C 5000 Destroyed MAIN.C Shell 5000 Destroyed MAIN.C 10000 Met Architect 300 Destroyed A8 300 Destroyed A6 400 Win 3000 Friendly Fire -2419 Cogmind --------- Core Integrity 240/1600 Matter 452/550 Energy 676/700 System Corruption 7% Temperature Cool (10) Movement Treading (145) Location 0b11 Command Parts ------- > --- POWER (2) -------- Vortex Chain Reactor > --- PROPULSION (6) --- Advanced Heavy Treads Biometal Heavy Treads Biometal Heavy Treads > --- UTILITY (13) ----- Desublimator Advanced Coolant Injector Huge Storage Unit Experimental Targeting Computer Advanced Target Analyzer Experimental Armor Integrity Analyzer Advanced Kinecellerator Experimental Weapon Cycler Advanced Powered Armor AEGIS Remote Shield Microwarp Drive > --- WEAPON (4) ------- Graviton Cannon Graviton Cannon > --- INVENTORY (25) --- Improved Quantum Reactor Zero-point Reactor Advanced Cooling System Advanced Cooling System Advanced Coolant Injector Experimental Energy Well (600) Experimental Energy Well (216) Experimental Matter Compressor (500) Advanced Kinecellerator Advanced Weapon Cycler Experimental Powered Armor Medium Regenerative Plating Heavy Regenerative Plating Experimental Focal Shield Experimental Force Field System Purifier Compact HERF Cannon Cooled Nova Cannon Improved Potential Cannon Multirail Sigix Broadsword Peak State ------------ > --- POWER ------------ Vortex Chain Reactor > --- PROPULSION ------- Advanced Heavy Treads Biometal Heavy Treads Biometal Heavy Treads > --- UTILITY ---------- Advanced Cooling System Advanced Coolant Injector Huge Storage Unit Experimental Energy Well Advanced Visual Processing Unit Experimental Targeting Computer Experimental Armor Integrity Analyzer Advanced Kinecellerator Experimental Weapon Cycler Advanced Powered Armor AEGIS Remote Shield Microwarp Drive > --- WEAPON ----------- Graviton Cannon Graviton Cannon Sigix Broadsword > --- INVENTORY -------- Improved Quantum Reactor Zero-point Reactor Desublimator Advanced Cooling System Advanced Coolant Injector Experimental Energy Well Experimental Energy Well Experimental Matter Compressor Advanced Target Analyzer Advanced Kinecellerator Advanced Weapon Cycler Advanced Powered Armor Experimental Powered Armor Heavy Regenerative Plating Experimental Focal Shield Experimental Force Field System Purifier Integrity Redistributor Integrity Redistributor Compact HERF Cannon Cooled Nova Cannon Improved Potential Cannon Multirail [Rating: 251] Favorites ----------- Power Antimatter Reactor Engine Ion Engine Power Core Enhanced Nuclear Core Reactor Antimatter Reactor Propulsion Centrium Heavy Treads Treads Centrium Heavy Treads Leg Aluminum Leg Wheel Wheel Hover Unit Improved Antigrav System Utility Experimental Targeting Computer Device Advanced Force Field Storage Huge Storage Unit Processor Experimental Targeting Computer Hackware Relay Coupler [Hunter] Protection Centrium Heavy Armor Plating Artifact Microwarp Drive Weapon Sigix Broadsword Energy Gun Force Rifle Energy Cannon Enhanced Nova Cannon Ballistic Gun Improved KE Penetrator Ballistic Cannon Improved Light Cannon Launcher Advanced EMP Blaster Special Weapon Improved Remote Datajack Impact Weapon Great Maul Slashing Weapon Sigix Broadsword Special Melee Weapon Improved Datajack Build | -11 -10 -10 -10 -9 -8 -8 -7 -7 -6 -6 -6 -6 -6 -6 -6 -6 -5 -5 -5 -5 -5 -5 -4 -4 -4 -4 -4 -4 -3 -3 -2 -2 -2 -2 -1 -1 -1 ------- Run | Scr Mat Min Exi Min Mat Gar Fac Gar Fac Was Fac Ext Cet Arc Hub Gar Fac Was Fac Gar Fac Gar Fac Was Fac Gar Fac Gar Res Tes Res Qua Sec Gar Acc Com Ac0 Slots Evolved 18 | . . . . . 4 . 2 . 2 . . . . . . . 2 . . . . . 2 . . . . . 2 . 2 . . . 2 . . Power 1 | . . . . . . . . . 1 . . . . . . . . . . . . . . . . . . . . . . . . . . . . Propulsion 4 | . . . . . . . 2 . . . . . . . . . . . . . . . . . . . . . 2 . . . . . . . . Utility 11 | . . . . . 4 . . . 1 . . . . . . . 2 . . . . . 2 . . . . . . . 2 . . . . . . Weapon 2 | . . . . . . . . . . . . . . . . . . . . . . . . . . . . . . . . . . . 2 . . Parts Attached 1076 | . 11 4 . 5 45 14 26 26 29 14 4 9 15 27 20 26 26 15 21 33 40 27 35 5 22 24 10 22 55 51 23 68 102 18 24 122 58 Power 49 | . 2 . . . 3 . . 1 2 3 . 1 1 . 1 . 2 6 . . . 2 1 2 3 . . . 2 2 3 3 . . . 9 . Engine 4 | . 2 . . . 1 . . . 1 . . . . . . . . . . . . . . . . . . . . . . . . . . . . Core 8 | . . . . . 2 . . 1 1 . . . . . . . 1 . . . . 2 1 . . . . . . . . . . . . . . Reactor 37 | . . . . . . . . . . 3 . 1 1 . 1 . 1 6 . . . . . 2 3 . . . 2 2 3 3 . . . 9 . Propulsion 63 | . 2 . . 2 8 1 5 2 3 3 . . 2 1 2 . . . . 2 . 3 1 . . . . . 1 3 . 7 1 . . 14 . Treads 53 | . 2 . . 2 5 1 5 2 3 3 . . 2 1 1 . . . . 2 . 3 1 . . . . . 1 3 . 6 1 . . 9 . Leg 6 | . . . . . . . . . . . . . . . 1 . . . . . . . . . . . . . . . . . . . . 5 . Wheel 3 | . . . . . 3 . . . . . . . . . . . . . . . . . . . . . . . . . . . . . . . . Hover 1 | . . . . . . . . . . . . . . . . . . . . . . . . . . . . . . . . 1 . . . . . Flight . | . . . . . . . . . . . . . . . . . . . . . . . . . . . . . . . . . . . . . . Utility 498 | . 3 . . . 10 6 6 8 7 5 . 4 4 21 13 13 12 3 10 10 16 13 20 1 12 16 6 12 30 20 6 37 53 7 12 70 32 Device 318 | . 1 . . . 4 3 1 2 4 2 . 2 . 15 7 5 8 3 8 6 12 3 13 1 6 8 5 6 23 14 5 28 40 5 12 46 20 Storage 22 | . 2 . . . 1 . . . 1 . . . . . . . 1 . . . . . . . 1 . . . 2 2 1 2 . . . 7 2 Processor 14 | . . . . . 1 . 1 . . 1 . . . . 1 . . . . . 1 . . . . . . . . . . . . . . 8 1 Hackware 63 | . . . . . . 1 . 3 1 1 . . . 2 1 5 2 . 2 4 2 8 3 . 4 6 1 5 1 3 . 2 3 2 . 1 . Protection 73 | . . . . . 4 2 4 3 1 1 . 2 4 4 4 3 1 . . . 1 2 4 . 1 2 . 1 4 1 . 5 6 . . 7 6 Artifact 8 | . . . . . . . . . . . . . . . . . . . . . . . . . . . . . . . . . 4 . . 1 3 Weapon 466 | . 4 4 . 3 24 7 15 15 17 3 4 4 8 5 4 13 12 6 11 21 24 9 13 2 7 8 4 10 22 26 14 21 48 11 12 29 26 Energy Gun 21 | . . . . . 3 . . . 1 2 2 1 4 3 . . 1 . . . . . . . . 1 . . . 1 . . . . . 2 . Energy Cannon 195 | . . . . . 1 3 4 5 11 . 1 1 . . 1 1 2 . 3 9 6 3 5 2 2 3 2 6 14 19 9 13 32 5 5 16 11 Ballistic Gun 75 | . 2 . . . 6 2 . 4 1 . . . 1 2 3 7 6 4 4 9 9 5 1 . . . . . 1 . . . 2 2 2 2 . Ballistic Cannon 63 | . 2 2 . 2 5 . 6 2 . 1 . . . . . . 2 . . 1 5 . 3 . 2 3 1 1 2 . 2 2 . . . 6 13 Launcher 31 | . . 2 . 1 4 2 1 2 . . 1 . 2 . . 4 . . . . . . 1 . . . . 1 1 4 . 1 1 1 1 1 . Special Weapon 63 | . . . . . . . 1 2 3 . . 2 1 . . 1 1 2 4 2 4 1 3 . 3 1 1 2 4 2 3 3 12 3 2 . . Impact Weapon 8 | . . . . . 5 . 1 . . . . . . . . . . . . . . . . . . . . . . . . 1 . . . 1 . Slashing Weapon 8 | . . . . . . . . . 1 . . . . . . . . . . . . . . . . . . . . . . 1 1 . 2 1 2 Piercing Weapon . | . . . . . . . . . . . . . . . . . . . . . . . . . . . . . . . . . . . . . . Special Melee Weapon 2 | . . . . . . . 2 . . . . . . . . . . . . . . . . . . . . . . . . . . . . . . Unidentified Prototypes 63 | . . . . . 6 . . . . . 1 . 4 1 6 . . . . . 1 . 2 . . . . . 2 9 . 10 3 . . 13 5 Corrupted Parts 30 | . . . . . . 1 1 1 . . . . 5 3 . . . . . 1 . 2 . . . . . . . 1 1 1 . . . 11 2 System Corruption 144 | . . . . . . 2 3 1 . . . . 21 25 . . . . . 6 . 10 . . . . . . . 16 1 3 . . . 48 8 Parts Lost 26 | . 2 . . . 3 1 1 1 1 . . . . . . . . . . . 1 5 . . . . . . . . 1 . . . . 8 2 Power 4 | . . . . . 1 . . . . . . . . . . . . . . . . 2 . . . . . . . . . . . . . 1 . Propulsion . | . . . . . . . . . . . . . . . . . . . . . . . . . . . . . . . . . . . . . . Utility 17 | . . . . . 1 1 1 1 1 . . . . . . . . . . . 1 2 . . . . . . . . 1 . . . . 6 2 Weapon 5 | . 2 . . . 1 . . . . . . . . . . . . . . . . 1 . . . . . . . . . . . . . 1 . Highest Loss Streak 6 | . 1 . . . 1 1 1 1 1 . . . . . . . . . . . 1 2 . . . . . . . . 1 . . . . 6 1 Average Slot Usage (%) 78 | . 97 100 100 100 93 89 88 91 99 89 85 86 86 80 77 73 83 82 80 79 78 86 85 84 83 82 88 88 84 78 79 76 72 70 71 61 73 Engine 1 | . 14 14 14 14 1 . . . 4 1 . . . . . . . . . . . . . . . . . . . . . . . . . . . Core 1 | . . . . . 6 9 7 7 7 2 . . . . . . . . . . . 4 10 6 . . . . . . . . . . . . . Reactor 6 | . . . . . . . . . . 9 13 13 13 13 13 13 11 11 11 11 11 4 . 3 10 10 10 10 9 9 7 7 4 4 4 6 4 Treads 14 | . 22 28 28 28 12 9 26 29 26 16 13 13 13 13 12 13 11 11 11 11 11 14 11 10 10 10 10 10 13 13 13 12 13 13 12 11 12 Device 12 | . 12 14 14 14 19 17 5 5 10 13 13 13 20 27 9 7 11 11 8 11 6 10 8 10 5 6 12 13 8 9 12 12 12 9 12 16 21 Storage 6 | . 14 14 14 14 9 9 7 7 6 6 6 6 6 6 6 6 6 5 5 5 5 5 5 5 5 5 5 5 4 4 4 4 4 4 4 6 6 Processor 5 | . . . . . 2 9 9 7 6 9 6 6 6 6 6 6 5 5 5 5 5 5 5 5 5 5 5 5 4 4 4 4 4 4 4 5 12 Hackware 12 | . . . . . . . 1 4 5 6 13 12 2 . 3 3 14 17 17 17 21 22 27 26 29 29 28 27 28 24 25 21 20 22 20 2 . Protection 5 | . . . . . 18 8 11 11 15 8 6 6 9 3 9 8 6 5 5 5 5 4 5 5 5 6 5 5 4 4 4 3 3 4 4 5 6 Energy Cannon 2 | . . . . . . 8 1 5 4 6 5 6 . . . . 1 . 1 1 . 1 1 5 4 1 1 4 3 1 3 3 3 1 3 2 1 Ballistic Gun 2 | . 7 . . . 6 3 2 3 6 . . . . 1 12 10 7 10 7 5 5 5 1 . . . . . . . . . . 1 . . . Ballistic Cannon 2 | . 16 27 28 27 8 1 8 . . . . . . . . . 1 . . . . . 2 . 1 2 3 1 . . . . . . . . 4 Special Weapon 1 | . . . . . . . . 3 1 1 . 4 1 . . 1 . . 1 . 1 1 4 5 3 3 4 4 3 3 3 3 3 3 3 . . Naked Turns . | . . . . . . . . . . . . . . . . . . . . . . . . . . . . . . . . . . . . . . Heaviest Build 330 | 14 34 34 34 34 74 80 87 87 144 145 137 137 146 145 175 175 163 147 154 164 162 152 139 159 159 158 157 160 159 170 229 233 248 235 245 330 224 Greatest Support 260 | 20 40 40 40 43 48 10 104 104 108 140 140 140 160 160 160 160 160 160 160 160 160 160 160 160 160 160 160 160 230 240 240 260 260 260 260 260 230 Greatest Overweight (x) 43 | . 1 . . . 7 7 7 . 1 1 . . . 43 2 1 1 . . 1 1 1 . . . . . . . 1 . 1 . . . 5 . Average Overweight (x) . | . . . . . 4 6 . . . . . . . 6 . . . . . . . . . . . . . . . . . . . . . . . Largest Inventory Capacity 30 | 8 15 15 15 15 20 20 20 20 25 25 25 25 25 25 25 25 25 25 25 25 25 25 25 25 25 25 25 25 25 25 30 30 30 30 30 30 25 Average Capacity 25 | 8 10 15 15 15 18 20 20 20 24 25 25 25 25 25 25 25 25 25 25 25 25 25 25 25 25 25 25 25 25 25 25 30 30 30 30 29 25 Most Carried 30 | 6 15 15 15 15 20 20 20 20 25 25 25 25 25 25 25 25 25 25 25 25 25 25 25 25 25 25 25 25 25 25 28 30 30 30 30 30 25 Average Carried 24 | 6 10 14 14 14 18 19 19 19 24 24 25 24 24 24 24 24 24 24 24 24 24 24 24 25 24 22 24 23 24 24 24 29 29 27 29 26 24 Final Capacity 30 | 8 15 15 15 15 20 20 20 20 25 25 25 25 25 25 25 25 25 25 25 25 25 25 25 25 25 25 25 25 25 25 30 30 30 30 30 25 25 Final Carried 30 | 6 15 15 15 15 20 20 20 20 24 25 25 25 25 25 25 25 25 25 25 25 23 25 25 25 25 25 24 25 25 24 28 30 29 30 30 25 24 Class Distribution -------------------- 39% | Botlord-Mutant 25% | Scavenger-Mutant 13% | Bothacker-Mutant 10% | Mutant 5% | Hauler-Mutant 4% | Scavenger-Gladiator Dominant Class ---------------- Mutant | -10/Materials Mutant | -10/Mines Mutant | -10/Exiles Mutant | -9/Mines Scavenger-Mutant | -8/Materials Mutant | -8/Garrison Mutant | -7/Factory Bothacker-Mutant | -7/Garrison Bothacker-Mutant | -6/Factory Scavenger-Mutant | -6/Waste Scavenger-Mutant | -6/Factory Scavenger-Mutant | -6/Extension Scavenger-Mutant | -6/Cetus Scavenger-Mutant | -6/Archives Scavenger-Mutant | -6/Hub_04(d) Scavenger-Mutant | -6/Garrison Bothacker-Mutant | -5/Factory Bothacker-Mutant | -5/Waste Bothacker-Mutant | -5/Factory Bothacker-Mutant | -5/Garrison Bothacker-Mutant | -5/Factory Botlord-Mutant | -5/Garrison Botlord-Mutant | -4/Factory Botlord-Mutant | -4/Waste Botlord-Mutant | -4/Factory Botlord-Mutant | -4/Garrison Botlord-Mutant | -4/Factory Botlord-Mutant | -4/Garrison Botlord-Mutant | -3/Research Botlord-Mutant | -3/Testing Botlord-Mutant | -2/Research Botlord-Mutant | -2/Quarantine Botlord-Mutant | -2/Section 7 Botlord-Mutant | -2/Garrison Botlord-Mutant | -1/Access Scavenger-Mutant | -1/Command Scavenger-Mutant | -1/Access_0 Resources | -11 -10 -10 -10 -9 -8 -8 -7 -7 -6 -6 -6 -6 -6 -6 -6 -6 -5 -5 -5 -5 -5 -5 -4 -4 -4 -4 -4 -4 -3 -3 -2 -2 -2 -2 -1 -1 -1 ----------- Run | Scr Mat Min Exi Min Mat Gar Fac Gar Fac Was Fac Ext Cet Arc Hub Gar Fac Was Fac Gar Fac Gar Fac Was Fac Gar Fac Gar Res Tes Res Qua Sec Gar Acc Com Ac0 Matter Collected 22439 | 200 351 170 . 210 1258 208 285 697 383 170 . 244 249 384 787 655 629 385 297 784 1179 1133 583 96 420 974 428 465 936 837 532 834 1820 473 256 2504 623 Remotely 1713 | . . . . . . . . . 51 . . . . . 69 . . 206 235 108 438 . 169 . . 261 . . 176 . . . . . . . . Salvage Created 33624 | . 609 162 . 323 1568 457 273 798 931 1823 . 245 293 529 1210 1319 939 634 166 992 1785 1372 768 52 370 784 431 682 1831 1505 768 1615 3073 1289 732 2468 828 Parts 1423 | . 48 28 . 24 83 23 21 38 36 51 . 11 14 36 60 53 37 10 19 39 87 49 39 1 14 35 17 23 51 58 29 75 142 42 36 52 42 Haulers Intercepted 20 | . 1 . . . 6 . . . 1 . . . . . 2 . . . . . 2 . . . . . 1 . 3 2 1 . 1 . . . . Recyclers Shooed 26 | . . 1 . . 2 . 1 . 2 . . 1 . . . . 4 . . . . . 2 . 1 . 2 . 5 . 2 . 1 . 1 1 . Parts Field Recycled 23 | . . . . . . . . . . . . . . . . . . . . . . . . . . . . . . . . . . . 4 19 . Retrieved Matter 770 | . . . . . . . . . . . . . . . . . . . . . . . . . . . . . . . . . . . 360 410 . Parts Self-Destructed . | . . . . . . . . . . . . . . . . . . . . . . . . . . . . . . . . . . . . . . Prevented . | . . . . . . . . . . . . . . . . . . . . . . . . . . . . . . . . . . . . . . Kills | -11 -10 -10 -10 -9 -8 -8 -7 -7 -6 -6 -6 -6 -6 -6 -6 -6 -5 -5 -5 -5 -5 -5 -4 -4 -4 -4 -4 -4 -3 -3 -2 -2 -2 -2 -1 -1 -1 ------- Run | Scr Mat Min Exi Min Mat Gar Fac Gar Fac Was Fac Ext Cet Arc Hub Gar Fac Was Fac Gar Fac Gar Fac Was Fac Gar Fac Gar Res Tes Res Qua Sec Gar Acc Com Ac0 Combat Hostiles Destroyed 412 | . 13 9 . 7 28 11 7 14 10 6 . 3 4 2 14 23 14 2 1 17 23 23 12 . 4 13 4 13 12 17 6 16 34 14 7 16 13 Melee 6 | . . . . . . . . . . . . . . . . . . . . . . . . . . . . . . . . . 3 . 3 . . Guns 68 | . 3 . . . 13 . . . 1 2 . 1 1 2 14 9 3 2 . 6 6 2 . . . . . . . . . . . 2 1 . . Cannons 194 | . 10 3 . 5 12 2 4 9 4 4 . 2 . . . . 11 . . 9 15 14 9 . 4 8 2 4 8 4 5 12 17 4 . 6 7 AOE 49 | . . 6 . 2 3 8 2 4 1 . . . . . . 7 . . . . . . 2 . . . . 3 . 8 . 1 1 . . 1 . Classes Destroyed 22 | . 6 3 . 1 3 . 1 2 1 1 . . . . . . . . . . 2 . . . . . . . . 1 . 1 . . . . . Worker 20 | . 2 2 . 2 2 . . . . . . . . . 3 . 1 . 1 . . . . . 2 . 1 . 1 . . . 1 . . 2 . Builder 20 | . 2 1 . . 1 . 1 . 1 . . . . . . . 1 . 1 . 4 . . . . . . . . 2 4 . 1 . 1 . . Tunneler 1 | . . 1 . . . . . . . . . . . . . . . . . . . . . . . . . . . . . . . . . . . Hauler 20 | . 1 . . . 6 . . . 1 . . . . . 2 . . . . . 2 . . . . . 1 . 3 2 1 . 1 . . . . Recycler 31 | . . 1 . 3 3 . . . 1 . . . . . 1 . 3 . . . 3 . 1 . 1 . . . 6 1 3 . 1 . . 3 . Mechanic 1 | . . . . . . . . . . . . . . . . . . . . . . . . . . . . . . 1 . . . . . . . Operator 17 | . 3 . . . 3 . . . . . . . . 9 . . . . . . 1 . 1 . . . . . . . . . . . . . . Watcher 16 | . 3 . . . 2 . . . . . . . . . . . 1 . 1 . 1 1 . . . . . 1 1 1 . 1 2 . 1 . . Swarmer 70 | . . 9 . 4 4 3 3 1 . . . 1 . . 4 4 5 . . 3 . 7 4 . . 5 . 5 . 4 . . . 2 . 2 . Saboteur 1 | . . . . . . . . . . . . . . . . . . . . . 1 . . . . . . . . . . . . . . . . Grunt 131 | . 13 . . 2 18 5 . 7 5 . . . . . . 13 3 . . 7 8 9 1 . 1 3 4 5 5 4 . 2 9 5 2 . . Brawler 8 | . . . . 1 . . . 3 . . . . . . . . . . . 1 . 1 . . . . . . . . . . . 2 . . . Duelist 5 | . . . . . 1 . . . . . . . . . . . 1 . . 1 . . . . . . . . 1 . . . 1 . . . . Protector 2 | . . . . . . . . 1 . . . . . . 1 . . . . . . . . . . . . . . . . . . . . . . Sentry 46 | . . . . . 4 1 2 1 3 . . 2 . 2 5 2 1 . . . 1 4 2 . . 3 . . 1 2 2 . 5 3 . . . Demolisher 1 | . . . . . . . . 1 . . . . . . . . . . . . . . . . . . . . . . . . . . . . . Specialist 3 | . . . . . . . . . . . . . . . . . . . . . 1 . . . . . . 1 . . . . . . . 1 . Hunter 37 | . . . . . 1 2 . . . . . . . . . 4 . . . 3 6 4 . . 2 2 . 2 2 2 . 3 . . 2 2 . Programmer 72 | . . . . . . . 2 1 1 . . . . . 1 . 4 . . 2 6 . 5 . 1 . . . 4 4 4 10 18 2 3 4 . Behemoth 9 | . . . . . . . . . 1 . . . . . . . . . 1 1 . . 1 . . . . . . . . . 1 1 1 2 . Compactor 8 | . . . . . . . . . . 6 . . . . . . . 2 . . . . . . . . . . . . . . . . . . . Cetus Guard 4 | . . . . . . . . . . . . . 4 . . . . . . . . . . . . . . . . . . . . . . . . M Guard 2 | . . . . . . . . . . . . . . . . . . . . . . . . . . . . . . . . . . . . 2 . Enhanced Grunt 4 | . . . . . . . . . . . . . . . . . . . . . . . . . . . . . . . . . . . . . 4 Enhanced Sentry 1 | . . . . . . . . . . . . . . . . . . . . . . . . . . . . . . . . . . . . . 1 Enhanced Hunter 6 | . . . . . . . . . . . . . . . . . . . . . . . . . . . . . . . . . . . . . 6 Lightning 3 | . . . . . . . . . . . . . . . 3 . . . . . . . . . . . . . . . . . . . . . . Combat Programmer 2 | . . . . . . . . . . . . . . . . . . . . . . . . . . . . . . . . . . . . 2 . Fortress 1 | . . . . . . . . . . . . . . . . . . . . . . . . . . . . . . . . 1 . . . . . Protovariant G 1 | . . . . . . . . . . . . . . . . . . . . . . . . . . . . . . 1 . . . . . . . Martyr 2 | . . . . . . . . . . . . 1 . . . . . . . . . . . 1 . . . . . . . . . . . . . Best Kill Streak 11 | . 6 6 . 5 5 5 4 3 4 1 . 1 4 7 5 6 6 1 2 5 11 7 4 . 2 3 5 4 8 10 5 4 6 4 3 4 4 Combat Bots Only 7 | . 6 3 . 4 4 5 3 3 4 1 . 1 4 2 3 6 4 1 1 5 6 7 4 . 2 3 4 4 6 7 2 3 6 4 2 4 4 Max Kills in Single Turn 3 | . 1 3 . 2 3 2 2 2 1 1 . 1 1 1 2 2 2 1 1 1 2 2 2 1 1 1 1 3 1 3 1 1 2 2 1 1 1 Gunslinging . | . . . . . . . . . . . . . . . . . . . . . . . . . . . . . . . . . . . . . . Exploded 3 | . . 3 . 1 3 2 2 2 1 . . . . . . 2 . . . . . . 2 . . . . 3 . 3 . 1 1 . . 1 . Melee 1 | . . . . . . . . . . . . . . . . . . . . . . . . . . . . . . . . . 1 . 1 . . Uniques/NPCs Destroyed 4 | . . . . . . . . . . . . . . . . . . . . . . . . . . . . . . . . . . . . 2 2 MAIN.C Shell (-1/Command) MAIN.C (-1/Command) A8 (-1/Access_0) A6 (-1/Access_0) Combat | -11 -10 -10 -10 -9 -8 -8 -7 -7 -6 -6 -6 -6 -6 -6 -6 -6 -5 -5 -5 -5 -5 -5 -4 -4 -4 -4 -4 -4 -3 -3 -2 -2 -2 -2 -1 -1 -1 -------- Run | Scr Mat Min Exi Min Mat Gar Fac Gar Fac Was Fac Ext Cet Arc Hub Gar Fac Was Fac Gar Fac Gar Fac Was Fac Gar Fac Gar Res Tes Res Qua Sec Gar Acc Com Ac0 Damage Taken 31936 | . 595 82 . 161 1334 156 789 735 953 . . 219 262 124 1085 1112 384 . 183 581 895 1177 209 . 640 605 142 465 460 1213 853 713 2128 221 677 4199 8584 Core 2409 | . 60 8 . 12 67 20 . 77 111 . . 5 30 25 78 31 32 . 18 47 91 89 6 . . 11 8 52 63 21 24 33 486 . . 164 740 Absorbed by Shields 13870 | . . . . . . . . . . . . 112 78 . . 285 202 . 137 170 313 207 125 . 122 215 151 496 256 490 598 646 1171 147 412 1710 5827 Reduced by Siege Mode 1259 | . . . . . . . . . . . . . . . 59 65 3 . . . 18 112 3 . 25 15 . 22 6 56 18 23 72 17 68 356 321 Core Remaining (%) 70 | 100 . . . 68 . 84 . 89 . . . . . . . 67 . . . . . 72 . . . . . 93 . 93 . . . 25 . . 15 Volleys Fired 2419 | . 65 14 . 19 137 23 20 65 91 122 1 34 12 70 67 48 53 25 27 53 88 91 52 6 39 74 43 57 139 90 76 78 259 43 48 132 158 Largest 4 | . 2 2 . 2 2 2 2 2 2 2 1 2 2 2 2 2 2 2 2 2 2 2 2 1 2 1 1 1 1 1 1 1 2 2 1 4 3 Hottest 340 | . 90 78 . 78 119 138 138 138 250 170 39 170 240 160 115 70 147 70 250 250 70 125 250 110 176 81 110 81 250 110 110 120 250 250 250 250 340 Shots Fired 3097 | . 120 22 . 34 262 30 33 74 120 155 1 44 20 72 128 65 91 44 32 73 117 107 53 7 46 76 43 57 139 94 75 78 261 48 48 184 244 Gun 796 | . 70 . . . 123 1 3 3 19 49 . 11 16 72 128 40 35 38 8 30 61 42 3 . . 1 . . . . . . 2 11 4 26 . Cannon 1928 | . 50 16 . 30 137 16 27 56 84 96 . 11 . . . 4 53 . 16 33 44 48 36 7 35 61 30 36 124 70 64 72 224 19 36 149 244 Launcher 88 | . . 6 . 4 2 13 2 6 . . 1 . 4 . . 19 . . . . . . 1 . . . . 2 . 10 . 4 4 8 2 . . Special 285 | . . . . . . . 1 9 17 10 . 22 . . . 2 3 6 8 10 12 17 13 . 11 14 13 19 15 14 11 2 31 10 6 9 . Kinetic 1205 | . 73 16 . 30 232 1 21 9 13 . . . 1 1 122 40 62 38 8 36 84 42 8 . 18 23 14 . 24 . 22 3 2 11 4 74 173 Thermal 1053 | . 17 . . . 25 . . . 56 145 . 22 8 71 6 . 19 . 16 12 . 10 31 3 17 1 4 . 68 54 33 60 189 13 31 95 47 Explosive 20 | . . 6 . 4 1 2 2 . . . 1 . . . . . . . . . . . 1 . . . . 2 . 1 . . . . . . . Electromagnetic 534 | . 30 . . . 4 27 9 56 34 . . . 11 . . 23 7 . . 15 21 38 . 4 . 38 12 36 32 25 9 13 39 14 7 6 24 Robot Hit Streak 70 | . 16 5 . 4 15 7 14 30 22 43 . 20 20 14 47 21 57 15 17 36 32 19 13 3 16 11 24 30 38 19 31 32 41 70 28 40 43 Robot Miss Streak 5 | . 5 1 . 2 5 . 2 1 3 2 . 4 2 2 3 2 2 1 1 5 5 2 2 1 1 2 1 1 1 3 2 2 3 1 1 2 2 Penetration Max 1 | . . . . . . . . . . . . . . . 1 . 1 1 . . 1 1 1 . 1 . 1 . . . . . 1 1 1 . . Secondary Targets 5 | . . . . . 1 . . . . . . . . . 3 . . 1 . . . . . . . . . . . . . . . . . . . Max Gunslinging Chain 1 | . . . . . 1 . . . . . . . . . 1 . . 1 . . . . . . . . . . . . . . . . . . . Capacitor 3 | . . . . . . . . . . . . . . . . . . . . . . 3 . . . . . . . . . . . . . . . Shots Hit Robots 2078 | . 65 11 . 16 158 5 25 46 74 137 . 35 13 61 98 43 67 40 18 52 95 75 31 5 33 38 36 45 68 57 53 48 149 32 26 133 190 Core Hits 936 | . 31 17 . 14 68 13 12 24 26 19 . 7 12 29 41 34 29 5 7 24 52 25 17 3 11 15 8 15 45 44 24 25 53 16 18 79 74 Critical Kills 37 | . . . . . . . . . . . . . . . 7 6 1 1 . . 5 . 4 . 4 4 1 . . . . . 2 . . . 2 Critical Parts Destroyed 63 | . . . . . 1 . . . . 3 . . 1 4 14 4 4 . . 1 9 1 4 . 5 2 7 . . . . . 2 . . 1 . Critical Strikes 172 | . 5 1 . 3 3 . . . 1 6 . . 1 4 22 12 8 4 . 3 23 9 8 . 9 7 9 3 3 1 . . 5 2 . 5 15 Burn 1 | . 1 . . . . . . . . . . . . . . . . . . . . . . . . . . . . . . . . . . . . Meltdown 4 | . . . . . . . . . . . . . . . . . . . . . . . 1 . . . . . . . . . 1 . . . 2 Destroy 103 | . . . . . 1 . . . . 6 . . 1 4 22 10 5 4 . 1 14 1 7 . 9 6 8 . . . . . 3 . . 1 . Blast 28 | . 3 1 . 3 2 . . . . . . . . . . . 2 . . . 3 . . . . . . . . . . . . . . 2 12 Corrupt 36 | . 1 . . . . . . . 1 . . . . . . 2 1 . . 2 6 8 . . . 1 1 3 3 1 . . 1 2 . 2 1 Melee Attacks 49 | . . . . . 9 . 2 . . . . . . . . . . . . . . . . . . . . . . . . 4 5 . 17 12 . Kinetic 3 | . . . . . . . . . . . . . . . . . . . . . . . . . . . . . . . . 3 . . . . . Impact 10 | . . . . . 9 . 1 . . . . . . . . . . . . . . . . . . . . . . . . . . . . . . Slashing 35 | . . . . . . . . . . . . . . . . . . . . . . . . . . . . . . . . 1 5 . 17 12 . Piercing . | . . . . . . . . . . . . . . . . . . . . . . . . . . . . . . . . . . . . . . Sneak Attacks 2 | . . . . . 1 . . . . . . . . . . . . . . . . . . . . . . . . . . . . . . 1 . Combat Hostiles . | . . . . . . . . . . . . . . . . . . . . . . . . . . . . . . . . . . . . . . Follow-up Attacks . | . . . . . . . . . . . . . . . . . . . . . . . . . . . . . . . . . . . . . . Damage Inflicted 85768 | . 1349 626 . 550 3458 843 671 1350 2010 3776 3 502 879 1522 2674 2074 2476 985 341 1552 3778 2556 1056 260 721 948 753 2054 3426 3877 2189 2375 6749 1741 1638 8069 15937 Guns 14346 | . 595 . . . 1250 . 29 . 311 1104 . 221 297 1522 2551 622 668 985 150 442 1323 579 50 . . . . . . . . . 46 290 173 1138 . Cannons 54641 | . 681 193 . 348 1740 147 508 976 1432 2672 . 253 . . . 209 1774 . 31 1015 2435 1977 783 260 646 948 704 1193 3215 1790 1992 1986 5869 936 469 5218 12241 Explosions 14510 | . 60 398 . 190 354 696 113 374 223 . 3 . 582 . . 1243 . . 104 95 . . 223 . 20 . . 861 76 1961 . 303 499 515 443 1478 3696 Melee 1243 | . . . . . 102 . . . . . . . . . . . . . . . . . . . . . . . . . . 86 308 . 512 235 . Ramming 1028 | . 13 35 . 12 12 . 21 . 44 . . 28 . . 123 . 34 . 56 . 20 . . . 55 . 49 . 135 126 197 . 27 . 41 . . Kinetic 29397 | . 897 193 . 348 2707 . 320 114 213 . . . 26 . 2454 622 1729 985 150 700 2987 579 178 . 287 142 172 . 1805 . 1165 86 46 290 173 3365 6664 Thermal 33506 | . 171 . . . 224 . . 120 828 3776 . 474 361 1522 97 216 412 . 135 265 . 309 700 121 359 . . 424 488 1744 507 1709 4468 663 315 4290 8808 Explosive 2379 | . . 398 . 190 354 280 113 . . . 3 . . . . . . . . . . . 178 . 20 . . 437 . 406 . . . . . . . Electromagnetic 18301 | . 268 . . . 59 563 217 1116 925 . . . 492 . . 1236 301 . . 587 771 1668 . 139 . 806 532 1193 998 1601 320 580 1900 788 597 179 465 Impact 102 | . . . . . 102 . . . . . . . . . . . . . . . . . . . . . . . . . . . . . . . . Slashing 1055 | . . . . . . . . . . . . . . . . . . . . . . . . . . . . . . . . . 308 . 512 235 . Piercing . | . . . . . . . . . . . . . . . . . . . . . . . . . . . . . . . . . . . . . . Highest Corruption 27 | . . . . . 2 4 9 10 . 1 1 1 22 22 1 1 1 6 6 13 17 27 5 5 7 7 7 6 6 16 8 5 4 . 2 24 8 Average Corruption 6 | . . . . . 2 2 7 9 . 1 1 1 14 10 1 1 1 3 6 6 14 19 4 5 5 7 6 1 2 11 5 2 2 . 1 7 5 Corruption Purged 165 | . . . . . . . . . . . . . . 47 . . . . . . . . . . . . 1 6 7 12 6 14 9 . 2 53 8 Effects 955 | . . . . . 23 13 25 67 . 3 1 1 27 59 3 6 1 5 15 38 46 140 22 11 30 96 11 11 17 59 24 18 19 . 1 154 9 Message Errors 253 | . . . . . 12 7 7 17 . 1 . 1 8 7 3 4 . 2 4 11 8 29 7 1 9 17 1 2 9 17 8 5 10 . . 46 . Matter Fused 189 | . . . . . . 1 8 18 . . . . 6 11 . . . 2 3 7 8 32 9 7 6 22 2 . . 11 5 3 1 . . 24 3 Heat Flow Errors 104 | . . . . . 3 3 1 3 . . . . 2 7 . . . . 1 4 6 16 1 . 4 21 4 . 4 4 2 1 3 . . 12 2 Energy Discharges 114 | . . . . . 2 1 3 8 . 1 1 . 4 8 . . . . 1 10 3 7 . 1 4 15 . 5 1 5 1 6 3 . 1 22 1 Parts Rejected 5 | . . . . . . . 1 1 . . . . . . . . . 1 . . . . . . 1 . . . . . 1 . . . . . . Data Loss (minor) 132 | . . . . . 4 1 3 9 . 1 . . 1 13 . 2 1 . 3 3 3 18 3 1 3 13 3 4 2 8 4 3 2 . . 24 . Data Loss (major) 40 | . . . . . . . 1 3 . . . . 1 2 . . . . 2 2 2 3 2 . 2 4 1 . 1 1 . . . . . 13 . Misfires 29 | . . . . . . . . 2 . . . . 1 3 . . . . 1 1 5 4 . 1 . 3 . . . 4 1 . . . . 2 1 Alerts 10 | . . . . . . . . 1 . . . . . 1 . . . . . . . 4 . . . . . . . 2 . . . . . 2 . Misdirections 58 | . . . . . . . . 2 . . . . 4 3 . . . . . . 8 27 . . . . . . . 7 . . . . . 7 . Weapon Failures 21 | . . . . . 2 . 1 3 . . . . . 4 . . . . . . 3 . . . 1 1 . . . . 2 . . . . 2 2 Overload Shots 1 | . . . . . . . . . . . . . 1 . . . . . . . . . . . . . . . . . . . . . . . . Overflow Damage 3391 | . 10 13 . 29 149 38 . 21 20 . . . . . 42 43 131 . . . 65 169 23 . 34 . 4 42 99 174 32 63 523 . 60 555 1052 Projectiles 2653 | . 10 13 . 29 67 . . 21 20 . . . . . . 17 131 . . . 65 169 23 . 34 . 4 42 73 145 32 63 439 . 10 350 896 Explosions 238 | . . . . . 5 38 . . . . . . . . . 26 . . . . . . . . . . . . . 3 . . 10 . . . 156 Melee 500 | . . . . . 77 . . . . . . . . . 42 . . . . . . . . . . . . . 26 26 . . 74 . 50 205 . Knockbacks 143 | . 15 1 . 3 15 . 6 1 2 . . 1 . . . . 10 . 2 2 7 . . . 6 . 1 . 20 1 11 . . . . 12 27 Impact 13 | . . . . . 1 . . . 2 . . 1 . . . . . . 1 . . . . . 1 . 1 . 3 1 2 . . . . . . Kinetic 121 | . 10 1 . 3 13 . 6 1 . . . . . . . . 9 . . 2 6 . . . 5 . . . 17 . 9 . . . . 12 27 Secondary 9 | . 5 . . . 1 . . . . . . . . . . . 1 . 1 . 1 . . . . . . . . . . . . . . . . Self-Inflicted Damage 852 | . . . . 14 . . 49 53 68 . . . . . . . . . 46 26 . . . . 137 . . 86 32 18 . 13 25 7 . 37 241 Shots 28 | . . . . 1 . . 1 1 1 . . . . . . . . . 4 2 . . . . 2 . . 1 1 3 . 1 2 1 . 4 3 Rammed 65 | . 2 4 . 2 3 . 1 . 6 . . 1 . . 4 . 2 . 2 . 3 . . . 2 1 2 . 8 6 10 . 4 . 2 . . Targets Rammed 71 | . 4 5 . 2 3 . 1 . 6 . . 1 . . 4 . 2 . 2 . 3 . . . 4 1 2 . 8 6 10 . 5 . 2 . . Kicked 1 | . 1 . . . . . . . . . . . . . . . . . . . . . . . . . . . . . . . . . . . . Crushed 5 | . 1 1 . . . . . . . . . . . . . . . . . . . . . . 2 . . . . . . . 1 . . . . Highest Temperature 414 | . 264 72 . 126 244 125 185 262 184 120 . . 104 224 7 337 105 . 252 303 408 246 211 68 414 258 268 112 264 202 218 288 346 245 248 251 190 Average Temperature 70 | . 99 32 . 39 46 27 37 68 41 53 . . 62 87 3 73 37 . 47 95 121 90 40 39 88 64 100 37 62 63 39 65 73 85 103 84 54 Received Heat Transfer 2919 | . 315 . . 12 531 36 78 156 243 . . 21 17 27 240 178 65 . 19 14 75 75 22 . 17 68 13 19 24 88 17 65 151 12 20 28 273 Effects 17 | . 1 . . . . . . 1 . . . . . . . 2 . . . 4 3 2 . . 2 1 . . . . . 1 . . . . . Shutdowns 2 | . . . . . . . . . . . . . . . . . . . . . 2 . . . . . . . . . . . . . . . . Energy Bleed 7 | . 1 . . . . . . 1 . . . . . . . 1 . . . 1 . 1 . . . 1 . . . . . 1 . . . . . Interference 5 | . . . . . . . . . . . . . . . . . . . . 2 . 1 . . 2 . . . . . . . . . . . . Short Circuit 2 | . . . . . . . . . . . . . . . . 1 . . . . 1 . . . . . . . . . . . . . . . . Damage (minor) 1 | . . . . . . . . . . . . . . . . . . . . 1 . . . . . . . . . . . . . . . . . Siege Activations 86 | . . . . . . . . . . . . . . . 5 5 1 . . 7 6 6 1 . 1 3 1 5 2 3 2 5 7 7 4 6 9 Total Turns 4886 | . . . . . . . . . . . . . . . 139 73 14 . . 115 99 136 10 . 31 111 15 419 9 46 18 49 110 397 52 2788 255 Longest Duration 2687 | . . . . . . . . . . . . . . . 74 40 14 . . 43 36 55 10 . 31 91 15 353 7 25 14 16 45 277 21 2687 117 Robots Corrupted 82 | . . . . . . 1 1 1 4 . . . 3 . . 7 . . . 1 2 8 . . . 5 2 6 5 5 1 2 12 8 2 2 4 Combat Hostiles 77 | . . . . . . 1 1 1 3 . . . 3 . . 7 . . . 1 2 7 . . . 5 2 6 4 5 1 2 11 7 2 2 4 Parts Fried 171 | . 1 . . . 1 3 3 5 10 . . . . . . 4 3 . . 7 7 17 . . . 13 3 15 8 16 1 8 23 8 3 4 8 Impact Corruptions 10 | . . . . . 2 . . . . . . . . . 2 . . . . . . . . . . . . . 2 2 2 . . . . . . Robots Melted 18 | . . . . . . . . . 1 . . . . . . . . . 1 1 . . 2 . . . . . . . . . 2 1 1 7 2 Combat Hostiles 17 | . . . . . . . . . 1 . . . . . . . . . 1 1 . . 1 . . . . . . . . . 2 1 1 7 2 Parts Melted 82 | . . . . . . . . . 6 . . 2 . 10 1 . . . 4 4 . . 5 . . . . . . . . 3 13 6 3 23 2 Heat Transferred 32290 | . 507 . . . 444 . . 150 1283 4958 . 592 354 2331 148 200 444 . 837 831 . 370 780 75 200 . . 300 1080 1200 300 1258 3567 911 676 6440 2054 Parts Sabotaged . | . . . . . . . . . . . . . . . . . . . . . . . . . . . . . . . . . . . . . . Parts Stolen . | . . . . . . . . . . . . . . . . . . . . . . . . . . . . . . . . . . . . . . Parts Stripped . | . . . . . . . . . . . . . . . . . . . . . . . . . . . . . . . . . . . . . . Power Chain Reactions 16 | . 1 . . . . 2 . 2 2 . . . 1 . . 3 . . . . . . . . . . . 1 . 4 . . . . . . . Missiles Intercepted . | . . . . . . . . . . . . . . . . . . . . . . . . . . . . . . . . . . . . . . Alert | -11 -10 -10 -10 -9 -8 -8 -7 -7 -6 -6 -6 -6 -6 -6 -6 -6 -5 -5 -5 -5 -5 -5 -4 -4 -4 -4 -4 -4 -3 -3 -2 -2 -2 -2 -1 -1 -1 ------- Run | Scr Mat Min Exi Min Mat Gar Fac Gar Fac Was Fac Ext Cet Arc Hub Gar Fac Was Fac Gar Fac Gar Fac Was Fac Gar Fac Gar Res Tes Res Qua Sec Gar Acc Com Ac0 Peak Influence 930 | . 195 186 . 215 583 841 545 747 437 220 14 650 930 353 423 890 814 238 361 600 489 895 508 56 680 823 501 779 440 282 238 288 603 464 355 141 . Initial 466 | . . 31 . . . 378 441 239 392 201 . 6 280 292 . 111 466 232 166 58 315 222 464 56 . 96 431 245 438 . 111 55 . 125 278 10 . Average 317 | . 105 70 . 74 178 677 409 575 261 87 6 323 739 82 106 673 499 235 187 453 275 756 333 41 353 581 380 573 109 77 128 90 181 364 209 52 . Maximum Alert Level 3 | . . . . 1 2 3 2 3 2 1 . 2 3 1 2 3 3 1 1 2 2 3 2 . 2 3 2 3 2 1 1 1 2 2 1 1 . Low Security (%) 46 | 100 100 100 . 97 71 . . . 31 62 100 21 . 82 82 5 . . 56 8 25 . 14 100 40 11 . . 88 94 87 91 64 8 36 57 . Level 1 26 | . . . . 2 19 7 41 13 61 37 . 40 9 17 14 10 41 100 43 18 58 9 59 . 2 13 65 18 6 5 12 8 22 44 63 42 . Level 2 16 | . . . . . 8 34 58 63 7 . . 38 14 . 2 22 49 . . 73 15 18 26 . 56 33 34 46 5 . . . 13 47 . . . Level 3 10 | . . . . . . 57 . 23 . . . . 75 . . 60 9 . . . . 72 . . . 41 . 34 . . . . . . . . . Level 4 . | . . . . . . . . . . . . . . . . . . . . . . . . . . . . . . . . . . . . . . Level 5 . | . . . . . . . . . . . . . . . . . . . . . . . . . . . . . . . . . . . . . . High Security . | . . . . . . . . . . . . . . . . . . . . . . . . . . . . . . . . . . . . . . Max Security . | . . . . . . . . . . . . . . . . . . . . . . . . . . . . . . . . . . . . . . Squads Dispatched 77 | . 4 . . . 4 . 2 . 4 . . 1 1 . 5 . 3 . 2 . 4 . 4 . 7 . 1 . 5 5 2 6 10 . 5 2 . Investigation 9 | . 1 . . . . . . . . . . . 1 . . . . . . . . . 1 . 2 . 1 . . . . . 1 . 2 . . Extermination 30 | . . . . . . . 2 . 1 . . . . . 1 . 1 . . . 1 . 2 . 2 . . . 3 1 2 3 7 . 2 2 . Reinforcement 31 | . 3 . . . 4 . . . 3 . . 1 . . 1 . 2 . 1 . 3 . . . 2 . . . 2 4 . 2 2 . 1 . . Assault 2 | . . . . . . . . . . . . . . . . . . . . . . . 1 . 1 . . . . . . . . . . . . Garrison 5 | . . . . . . . . . . . . . . . 3 . . . 1 . . . . . . . . . . . . 1 . . . . . Intercept . | . . . . . . . . . . . . . . . . . . . . . . . . . . . . . . . . . . . . . . Construction Impeded 8 | . . . . . . . . . 2 . . 1 . . . . . . . . 1 . . . . . . . 1 1 . . 1 . 1 . . Haulers Reinforced 1 | . . . . . . . . . . . . . . . . . . . . . 1 . . . . . . . . . . . . . . . . Cargo Convoy Interrupts 2 | . . . . . . . . . 1 . . . . . . . 1 . . . . . . . . . . . . . . . . . . . . Alert ID Control Effect 53 | . . . . . . . . . . . . . . . . . . . . 1 2 3 7 . 2 7 5 2 20 . . . . . 1 3 . Stealth | -11 -10 -10 -10 -9 -8 -8 -7 -7 -6 -6 -6 -6 -6 -6 -6 -6 -5 -5 -5 -5 -5 -5 -4 -4 -4 -4 -4 -4 -3 -3 -2 -2 -2 -2 -1 -1 -1 --------- Run | Scr Mat Min Exi Min Mat Gar Fac Gar Fac Was Fac Ext Cet Arc Hub Gar Fac Was Fac Gar Fac Gar Fac Was Fac Gar Fac Gar Res Tes Res Qua Sec Gar Acc Com Ac0 Distress Signals 54 | . 2 1 . . 2 . . . 2 . . 1 2 . 2 . 1 . 1 . 3 . 2 . 2 . . . 4 3 . . 1 . . 25 . Communications Jammed 191 | . . . . . . . . . . . . . 121 . . . . . . . . . . . . . . . . 13 7 1 46 . 3 . . Distress Signals 190 | . . . . . . . . . . . . . 121 . . . . . . . . . . . . . . . . 13 7 . 46 . 3 . . Times Spotted 832 | . 22 9 . 10 56 9 9 21 21 6 . 19 17 27 23 32 23 6 10 20 38 38 22 1 27 33 18 23 35 31 28 23 70 16 12 29 48 Peak Tracking Total 14 | . 5 3 . 4 6 4 3 4 6 2 . 4 5 1 9 6 5 3 2 5 12 7 6 . 5 6 4 5 6 8 14 4 7 5 4 6 9 Tactical Retreats 67 | . 2 . . . 6 1 . . . . . 1 1 . 1 7 2 . . . 5 . 2 . 2 10 2 3 1 1 1 . 13 3 . 1 2 Traps | -11 -10 -10 -10 -9 -8 -8 -7 -7 -6 -6 -6 -6 -6 -6 -6 -6 -5 -5 -5 -5 -5 -5 -4 -4 -4 -4 -4 -4 -3 -3 -2 -2 -2 -2 -1 -1 -1 ------- Run | Scr Mat Min Exi Min Mat Gar Fac Gar Fac Was Fac Ext Cet Arc Hub Gar Fac Was Fac Gar Fac Gar Fac Was Fac Gar Fac Gar Res Tes Res Qua Sec Gar Acc Com Ac0 Traps Triggered 59 | . 2 . . . 1 5 1 . 1 . . 1 . . . 9 1 . . . . 2 2 . . 2 . 1 1 4 3 2 6 . . 15 . Indirectly . | . . . . . . . . . . . . . . . . . . . . . . . . . . . . . . . . . . . . . . Trap Hack Attempts . | . . . . . . . . . . . . . . . . . . . . . . . . . . . . . . . . . . . . . . Triggered . | . . . . . . . . . . . . . . . . . . . . . . . . . . . . . . . . . . . . . . Disarmed . | . . . . . . . . . . . . . . . . . . . . . . . . . . . . . . . . . . . . . . Reprogrammed . | . . . . . . . . . . . . . . . . . . . . . . . . . . . . . . . . . . . . . . Reused . | . . . . . . . . . . . . . . . . . . . . . . . . . . . . . . . . . . . . . . Traps Reconfigurated 5 | . . . . . . 4 . . 1 . . . . . . . . . . . . . . . . . . . . . . . . . . . . Traps Extracted . | . . . . . . . . . . . . . . . . . . . . . . . . . . . . . . . . . . . . . . Installed . | . . . . . . . . . . . . . . . . . . . . . . . . . . . . . . . . . . . . . . Triggered 2 | . . . . . . . . . . . . . . . . . . . . . . . . . . . . . . . . . 1 . . 1 . Machines | -11 -10 -10 -10 -9 -8 -8 -7 -7 -6 -6 -6 -6 -6 -6 -6 -6 -5 -5 -5 -5 -5 -5 -4 -4 -4 -4 -4 -4 -3 -3 -2 -2 -2 -2 -1 -1 -1 ---------- Run | Scr Mat Min Exi Min Mat Gar Fac Gar Fac Was Fac Ext Cet Arc Hub Gar Fac Was Fac Gar Fac Gar Fac Was Fac Gar Fac Gar Res Tes Res Qua Sec Gar Acc Com Ac0 Machines Disabled 116 | . . . . 1 6 2 . 6 . . . 2 4 3 11 5 3 . 1 5 2 4 1 . 6 5 5 4 2 9 1 5 10 3 . 7 3 Max in Single Turn 2 | . . . . 1 2 1 . 1 . . . 1 1 1 2 2 1 . 1 1 1 1 . . 2 1 1 1 1 1 1 1 1 1 . 2 1 Garrison Access 7 | . . . . . . . . . . . . . . . . . . . . . . . 1 . . . . . 3 . 2 1 . . . . . Garrison Relay 24 | . . . . . . 2 . 3 . . . . . . . 3 . . . 3 . 4 . . . 4 . 3 . . . . . 2 . . . Network Hub 1 | . . . . . . . . . . . . . . . 1 . . . . . . . . . . . . . . . . . . . . . . Machines Sabotaged . | . . . . . . . . . . . . . . . . . . . . . . . . . . . . . . . . . . . . . . Garrisons Compromised . | . . . . . . . . . . . . . . . . . . . . . . . . . . . . . . . . . . . . . . Overloaded Fab Kills . | . . . . . . . . . . . . . . . . . . . . . . . . . . . . . . . . . . . . . . Fab Network Shutdowns . | . . . . . . . . . . . . . . . . . . . . . . . . . . . . . . . . . . . . . . Hacking | -11 -10 -10 -10 -9 -8 -8 -7 -7 -6 -6 -6 -6 -6 -6 -6 -6 -5 -5 -5 -5 -5 -5 -4 -4 -4 -4 -4 -4 -3 -3 -2 -2 -2 -2 -1 -1 -1 --------- Run | Scr Mat Min Exi Min Mat Gar Fac Gar Fac Was Fac Ext Cet Arc Hub Gar Fac Was Fac Gar Fac Gar Fac Was Fac Gar Fac Gar Res Tes Res Qua Sec Gar Acc Com Ac0 Machines Accessed 115 | . 6 . 2 . 6 . 5 . 4 . . 5 1 . 6 . 4 . 2 . 2 . 6 . 4 . 3 . 9 9 6 9 14 . 7 5 . Terminals 81 | . 4 . . . 4 . 2 . 2 . . 5 1 . 5 . 4 . 1 . 1 . 4 . 2 . 2 . 5 6 3 7 12 . 7 4 . Fabricators 3 | . . . . . . . . . 1 . . . . . . . . . . . . . . . 1 . . . 1 . . . . . . . . Repair Stations 8 | . 1 . . . 1 . 2 . 1 . . . . . . . . . . . . . 1 . . . . . . 1 1 . . . . . . Recycling Units 2 | . 1 . . . . . . . . . . . . . . . . . . . . . . . . . . . . . . . . . . 1 . Scanalyzers 4 | . . . . . . . . . . . . . . . . . . . . . . . . . . . . . . 2 . 1 1 . . . . Garrison Access 15 | . . . . . 1 . 1 . . . . . . . 1 . . . 1 . 1 . 1 . 1 . 1 . 3 . 2 1 1 . . . . Total Hacks 444 | . 22 . 3 . 15 . 11 . 15 . . 6 4 . 21 . 26 . 9 . 8 . 38 . 19 . 15 . 50 38 19 32 48 . 36 9 . Successful 257 | . 16 . 3 . 7 . 5 . 8 . . 5 . . 13 . 14 . 3 . 3 . 26 . 9 . 11 . 32 24 11 18 27 . 20 2 . Failed 186 | . 5 . . . 8 . 6 . 7 . . 1 4 . 8 . 12 . 6 . 5 . 12 . 10 . 4 . 18 14 8 14 21 . 16 7 . Catastrophic 28 | . . . . . . . 3 . . . . . 1 . . . 4 . . . 1 . 1 . 1 . . . 2 1 1 1 4 . 5 3 . Database Lockouts 1 | . 1 . . . . . . . . . . . . . . . . . . . . . . . . . . . . . . . . . . . . Manual 202 | . 15 . 1 . 9 . 3 . . . . . . . 14 . 16 . 3 . 4 . 13 . 16 . 5 . 27 15 6 13 24 . 16 2 . Terminals 337 | . 19 . . . 10 . 3 . 9 . . 6 4 . 16 . 26 . 6 . 4 . 21 . 14 . 13 . 33 31 11 24 43 . 36 8 . Fabricators 14 | . . . . . . . . . 2 . . . . . . . . . . . . . . . 3 . . . 9 . . . . . . . . Repair Stations 32 | . 2 . . . 2 . 5 . 4 . . . . . . . . . . . . . 13 . . . . . . 3 3 . . . . . . Recycling Units 2 | . 1 . . . . . . . . . . . . . . . . . . . . . . . . . . . . . . . . . . 1 . Scanalyzers 8 | . . . . . . . . . . . . . . . . . . . . . . . . . . . . . . 4 . 2 2 . . . . Garrison Access 48 | . . . . . 3 . 3 . . . . . . . 5 . . . 3 . 4 . 4 . 2 . 2 . 8 . 5 6 3 . . . . Terminal Hacks 127 | . 9 . 3 . 3 . . . 5 . . 5 . . 6 . 10 . 1 . . . 10 . 2 . 5 . 15 12 3 8 13 . 16 1 . Record 4 | . . . 2 . . . . . . . . . . . . . . . . . . . . . . . . . . . . 2 . . . . . Part Schematic 5 | . 2 . . . . . . . . . . . . . 1 . . . . . . . 1 . . . . . 1 . . . . . . . . Robot Analysis 5 | . 2 . . . . . . . . . . . . . . . . . . . . . . . . . . . . 1 . . . . 2 . . Prototype ID Bank 21 | . 2 . . . 2 . . . 1 . . . . . . . 1 . . . . . 4 . 1 . . . 3 3 1 1 . . 2 . . Open Door 11 | . . . . . . . . . . . . 5 . . . . . . . . . . . . . . . . . . . . 2 . 3 1 . Level Access Points 1 | . . . . . . . . . . . . . . . . . . . . . . . . . . . . . . 1 . . . . . . . Branch Access Points 3 | . . . . . . . . . . . . . . . . . 1 . . . . . . . . . . . 1 . 1 . . . . . . Emergency Access Points 6 | . . . . . . . . . 1 . . . . . . . . . . . . . 1 . . . . . . 1 . . 3 . . . . Machine Index 2 | . . . . . . . . . . . . . . . . . . . . . . . . . . . . . . . . . 1 . 1 . . Terminal Index 2 | . . . . . . . . . . . . . . . . . . . . . . . . . . . 1 . . . . . 1 . . . . Scanalyzer Index 2 | . . . . . . . . . . . . . . . . . . . . . . . . . . . . . . . . 1 1 . . . . Garrison Index 2 | . . . . . . . . . . . . . . . 1 . . . . . . . . . . . . . . 1 . . . . . . . Unreport Threat 20 | . . . . . 1 . . . 1 . . . . . 3 . 3 . . . . . 2 . 1 . . . 2 1 . 2 1 . 3 . . Locate Traps 10 | . 1 . . . . . . . 1 . . . . . . . 3 . . . . . . . . . 2 . . 2 . 1 . . . . . Dispatch Records 1 | . . . . . . . . . . . . . . . . . . . . . . . . . . . . . . . . . . . 1 . . Maintenance Status 2 | . . . . . . . . . . . . . . . 1 . . . . . . . . . . . . . 1 . . . . . . . . Security Status 1 | . . . . . . . . . . . . . . . . . . . . . . . . . . . . . . . . . . . 1 . . Surveillance Status 2 | . . . . . . . . . . . . . . . . . . . . . . . . . . . . . 1 . . . 1 . . . . Patrol Status 1 | . . . . . . . . . . . . . . . . . . . . . . . . . . . . . . . . . . . 1 . . Transport Status 3 | . . . . . . . . . . . . . . . . . . . . . . . . . . . . . 2 . . . . . 1 . . Recall Assault 1 | . . . . . . . . . . . . . . . . . . . . . . . 1 . . . . . . . . . . . . . . Hauler Manifests 7 | . 1 . . . . . . . . . . . . . . . 2 . . . . . . . . . 1 . 1 1 . . 1 . . . . Registered Components 2 | . 1 . . . . . . . . . . . . . . . . . . . . . . . . . . . 1 . . . . . . . . Registered Prototypes 1 | . . . . . . . . . . . . . . . . . . . . . . . . . . . . . . . . . . . 1 . . Zone Layout 11 | . . . . . . . . . 1 . . . . . . . . . 1 . . . 1 . . . 1 . 2 1 1 1 2 . . . . EX-Prototype ID Bank 1 | . . . 1 . . . . . . . . . . . . . . . . . . . . . . . . . . . . . . . . . . Fabricator Hacks 3 | . . . . . . . . . 1 . . . . . . . . . . . . . . . . . . . 2 . . . . . . . . Load Schematic 2 | . . . . . . . . . 1 . . . . . . . . . . . . . . . . . . . 1 . . . . . . . . Build 1 | . . . . . . . . . . . . . . . . . . . . . . . . . . . . . 1 . . . . . . . . Repair Station Hacks 21 | . 2 . . . . . 4 . 2 . . . . . . . . . . . . . 10 . . . . . . 2 1 . . . . . . Scan Component 11 | . 1 . . . . . 2 . 1 . . . . . . . . . . . . . 5 . . . . . . 1 1 . . . . . . Repair 10 | . 1 . . . . . 2 . 1 . . . . . . . . . . . . . 5 . . . . . . 1 . . . . . . . Recycling Unit Hacks . | . . . . . . . . . . . . . . . . . . . . . . . . . . . . . . . . . . . . . . Scanalyzer 4 | . . . . . . . . . . . . . . . . . . . . . . . . . . . . . . 1 . 1 2 . . . . Insert Component 4 | . . . . . . . . . . . . . . . . . . . . . . . . . . . . . . 1 . 1 2 . . . . Garrison Access Hacks 20 | . . . . . 1 . 1 . . . . . . . 1 . . . 1 . 1 . 1 . 1 . 1 . 5 . 4 2 1 . . . . Unlock Access 8 | . . . . . 1 . 1 . . . . . . . 1 . . . 1 . 1 . . . 1 . 1 . . . . . 1 . . . . Seal Access 6 | . . . . . . . . . . . . . . . . . . . . . . . . . . . . . 3 . 2 1 . . . . . Coupler Status 6 | . . . . . . . . . . . . . . . . . . . . . . . 1 . . . . . 2 . 2 1 . . . . . Unauthorized Hacks 82 | . 5 . . . 3 . . . . . . . . . 6 . 4 . 1 . 2 . 5 . 6 . 5 . 10 9 3 7 11 . 4 1 . Terminals 66 | . 4 . . . 3 . . . . . . . . . 4 . 4 . 1 . 1 . 5 . 3 . 4 . 6 8 2 5 11 . 4 1 . Track 25 | . 1 . . . . . . . . . . . . . 2 . 2 . . . 1 . 2 . 1 . . . 3 4 . 2 6 . 1 . . Botnet 28 | . 2 . . . 2 . . . . . . . . . 2 . 1 . 1 . . . 2 . 1 . 2 . 2 3 1 2 4 . 2 1 . Disrupt 1 | . . . . . . . . . . . . . . . . . . . . . . . . . . . 1 . . . . . . . . . . Operators 12 | . 1 . . . 1 . . . . . . . . . . . 1 . . . . . 1 . 1 . 1 . 1 1 1 1 1 . 1 . . Fabricators 6 | . . . . . . . . . . . . . . . . . . . . . . . . . 2 . . . 4 . . . . . . . . Report 2 | . . . . . . . . . . . . . . . . . . . . . . . . . 1 . . . 1 . . . . . . . . Prioritize 1 | . . . . . . . . . . . . . . . . . . . . . . . . . . . . . 1 . . . . . . . . Siphon 1 | . . . . . . . . . . . . . . . . . . . . . . . . . . . . . 1 . . . . . . . . Haulers 2 | . . . . . . . . . . . . . . . . . . . . . . . . . 1 . . . 1 . . . . . . . . Repair Stations . | . . . . . . . . . . . . . . . . . . . . . . . . . . . . . . . . . . . . . . Recycling Units 1 | . 1 . . . . . . . . . . . . . . . . . . . . . . . . . . . . . . . . . . . . Tunnel 1 | . 1 . . . . . . . . . . . . . . . . . . . . . . . . . . . . . . . . . . . . Scanalyzers 1 | . . . . . . . . . . . . . . . . . . . . . . . . . . . . . . 1 . . . . . . . Researchers 1 | . . . . . . . . . . . . . . . . . . . . . . . . . . . . . . 1 . . . . . . . Garrison Access 8 | . . . . . . . . . . . . . . . 2 . . . . . 1 . . . 1 . 1 . . . 1 2 . . . . . Broadcast 1 | . . . . . . . . . . . . . . . . . . . . . 1 . . . . . . . . . . . . . . . . Reprogram 5 | . . . . . . . . . . . . . . . 2 . . . . . . . . . . . . . . . 1 2 . . . . . Eject 2 | . . . . . . . . . . . . . . . . . . . . . . . . . 1 . 1 . . . . . . . . . . Data Cores Recovered 3 | . 1 . . . 1 . . . . . . . . . . . . . . . . . 1 . . . . . . . . . . . . . . Used . | . . . . . . . . . . . . . . . . . . . . . . . . . . . . . . . . . . . . . . Hacking Detections 91 | . 4 . . . 6 . 4 . 4 . . 1 1 . 5 . 4 . 2 . 2 . 5 . 3 . 2 . 7 7 5 7 11 . 7 4 . Full Trace Events 5 | . . . . . . . . . . . . . 1 . . . . . . . . . 1 . 1 . . . . . . . . . 2 . . Feedback Events . | . . . . . . . . . . . . . . . . . . . . . . . . . . . . . . . . . . . . . . Feedback Blocked . | . . . . . . . . . . . . . . . . . . . . . . . . . . . . . . . . . . . . . . Robot Schematics Acquired . | . . . . . . . . . . . . . . . . . . . . . . . . . . . . . . . . . . . . . . Robots Built . | . . . . . . . . . . . . . . . . . . . . . . . . . . . . . . . . . . . . . . Matter . | . . . . . . . . . . . . . . . . . . . . . . . . . . . . . . . . . . . . . . Time . | . . . . . . . . . . . . . . . . . . . . . . . . . . . . . . . . . . . . . . Total Robot Build Rating . | . . . . . . . . . . . . . . . . . . . . . . . . . . . . . . . . . . . . . . Part Schematics Acquired 25 | . 2 . . . . . . . . . . . . . 1 . . . . . . . 1 . . . . . 1 20 . . . . . . . Parts Built 2 | . . . . . . . . . . . . . . . . . . . . . . . . . . . . . 2 . . . . . . . . Matter 192 | . . . . . . . . . . . . . . . . . . . . . . . . . . . . . 192 . . . . . . . . Time 64 | . . . . . . . . . . . . . . . . . . . . . . . . . . . . . 64 . . . . . . . . Total Part Build Rating 16 | . . . . . . . . . . . . . . . . . . . . . . . . . . . . . 16 . . . . . . . . Parts Repaired 10 | . 1 . . . . . 2 . 1 . . . . . . . . . . . . . 5 . . . . . . 1 . . . . . . . Time 525 | . 26 . . . . . 76 . 22 . . . . . . . . . . . . . 347 . . . . . . 54 . . . . . . . Parts Recycled . | . . . . . . . . . . . . . . . . . . . . . . . . . . . . . . . . . . . . . . Recycled Matter . | . . . . . . . . . . . . . . . . . . . . . . . . . . . . . . . . . . . . . . Retrieved Matter . | . . . . . . . . . . . . . . . . . . . . . . . . . . . . . . . . . . . . . . Retrieved Components . | . . . . . . . . . . . . . . . . . . . . . . . . . . . . . . . . . . . . . . Parts Scanalyzed . | . . . . . . . . . . . . . . . . . . . . . . . . . . . . . . . . . . . . . . Part Schematics Acquired . | . . . . . . . . . . . . . . . . . . . . . . . . . . . . . . . . . . . . . . Parts Damaged . | . . . . . . . . . . . . . . . . . . . . . . . . . . . . . . . . . . . . . . Bothacking | -11 -10 -10 -10 -9 -8 -8 -7 -7 -6 -6 -6 -6 -6 -6 -6 -6 -5 -5 -5 -5 -5 -5 -4 -4 -4 -4 -4 -4 -3 -3 -2 -2 -2 -2 -1 -1 -1 ------------ Run | Scr Mat Min Exi Min Mat Gar Fac Gar Fac Was Fac Ext Cet Arc Hub Gar Fac Was Fac Gar Fac Gar Fac Was Fac Gar Fac Gar Res Tes Res Qua Sec Gar Acc Com Ac0 Used RIF Installer 8 | . . . . . . 1 . 1 . . . . . . . 1 . . . 1 . 1 . . . 1 . 1 . . . . . 1 . . . Command Fork 1 | . . . . . . . . . . . . . . . . . . . . . . 1 . . . . . . . . . . . . . . . Threat Obfuscator 1 | . . . . . . . . . . . . . . . . . . . . . . . . . . . . 1 . . . . . . . . . Zone Cloak 1 | . . . . . . . . 1 . . . . . . . . . . . . . . . . . . . . . . . . . . . . . Robot Detection 1 | . . . . . . . . . . . . . . . . 1 . . . . . . . . . . . . . . . . . . . . . Patrol Navigation 1 | . . . . . . . . . . . . . . . . . . . . . . . . . . 1 . . . . . . . . . . . Alert ID Control 1 | . . . . . . . . . . . . . . . . . . . . 1 . . . . . . . . . . . . . . . . . Crosswire 1 | . . . . . . . . . . . . . . . . . . . . . . . . . . . . . . . . . . 1 . . . Robots Hacked 159 | . . . . . . . 2 9 12 6 . 2 . . . 1 2 6 6 3 6 9 9 . 6 12 8 7 11 6 5 1 13 6 4 7 . Non-combat 65 | . . . . . . . 2 . 12 . . 2 . . . . 2 . 4 . 4 . 2 . 4 . 7 . 4 5 5 1 7 . 2 2 . Combat 94 | . . . . . . . . 9 . 6 . . . . . 1 . 6 2 3 2 9 7 . 2 12 1 7 7 1 . . 6 6 2 5 . Robot Hacks Applied 196 | . . . . . . . 2 9 14 10 . 2 . . . 1 3 6 8 3 8 10 9 . 8 12 11 7 12 11 5 1 25 7 5 7 . parse_system 8 | . . . . . . . . . . 4 . . . . . . . . . . . 1 1 . . . 2 . . . . . . . . . . find_chute 4 | . . . . . . . . . 1 . . . . . . . 1 . . . . . 2 . . . . . . . . . . . . . . ignore_repairs 27 | . . . . . . . . . 10 . . 2 . . . . . . 1 . . . . . . . . . 3 5 2 . 4 . . . . map_walls 6 | . . . . . . . . . . . . . . . . . . . 1 . . . . . . . . . . . 1 . 4 . . . . find_fabricator 1 | . . . . . . . 1 . . . . . . . . . . . . . . . . . . . . . . . . . . . . . . drop_inventory 10 | . . . . . . . . . 2 . . . . . . . . . 1 . 1 . . . 3 . 2 . . . 1 . . . . . . find_recycling 1 | . . . . . . . . . . . . . . . . . . . . . . . . . . . . . . . . . . . 1 . . ignore_parts 9 | . . . . . . . . . 1 . . . . . . . . . . . . . . . . . 2 . 1 . 1 . 2 . 1 1 . find_station 1 | . . . . . . . . . . . . . . . . . 1 . . . . . . . . . . . . . . . . . . . . purge_threat 13 | . . . . . . . . . . . . . . . . . . . 2 . 3 . . . 3 . 1 . . . . 1 3 . . . . locate_traps 2 | . . . . . . . . . . . . . . . . . . . . . . . . . . . 1 . . . . . . . . 1 . block_reporting 3 | . . . . . . . . . . . . . . . . . . . . . . . . . . . 2 . . . . . 1 . . . . summon_haulers 1 | . . . . . . . . . . . . . . . . . . . . . 1 . . . . . . . . . . . . . . . . map_route 3 | . . . . . . . 1 . . . . . . . . . . . . . 1 . . . . . . . . . . . . . 1 . . find_scanalyzer 1 | . . . . . . . . . . . . . . . . . . . . . . . . . . . . . . 1 . . . . . . . disable_scanner 5 | . . . . . . . . . . . . . . . . . . . . . . . . . . . . . . 1 . . 4 . . . . locate_prototypes 2 | . . . . . . . . . . . . . . . . . . . . . . . . . . . . . . . . . 2 . . . . report_prototypes 3 | . . . . . . . . . . . . . . . . . . . . . . . . . . . . . . 2 . . 1 . . . . report_schematics 2 | . . . . . . . . . . . . . . . . . . . . . . . . . . . . . . 2 . . . . . . . report_analyses 4 | . . . . . . . . . . . . . . . . . . . . . . . . . . . . . . . . . 4 . . . . ignore_targets 12 | . . . . . . . . . . 6 . . . . . . . 6 . . . . . . . . . . . . . . . . . . . find_garrison 4 | . . . . . . . . . . . . . . . . . . . 1 . . . . . . . 1 . 2 . . . . . . . . reboot_system 2 | . . . . . . . . . . . . . . . . . . . . . . . . . . 1 . . . . . . . 1 . . . overwrite_iff 40 | . . . . . . . . 9 . . . . . . . . . . . 3 2 1 3 . 1 3 . 1 4 . . . . 6 2 5 . streamctrl_low 1 | . . . . . . . . . . . . . . . . . 1 . . . . . . . . . . . . . . . . . . . . formatsys_high 31 | . . . . . . . . . . . . . . . . 1 . . 2 . . 8 3 . 1 8 . 6 2 . . . . . . . . Relay Couplers Released 118 | . . . . . . 8 . 11 . . . . . . . 10 . . . 11 . 16 1 . 3 18 3 13 5 . 3 8 . 8 . . . Ejected 6 | . . . . . . . . . . . . . . . . . . . . . . . . . 3 . 3 . . . . . . . . . . Machine Destruction 104 | . . . . . . 8 . 11 . . . . . . . 10 . . . 11 . 16 1 . . 18 . 13 5 . 3 . . 8 . . . Programmers 8 | . . . . . . . . . . . . . . . . . . . . . . . . . . . . . . . . 8 . . . . . Attached 57 | . . . . . . 1 . 3 1 . . . . . . 5 2 . 2 4 2 8 1 . 4 6 1 5 1 3 . 2 3 2 . 1 . Crosswired 5 | . . . . . . . . . . . . . . . . . . . . . . . . . . . . . . . . . . 5 . . . Robots Rewired 21 | . . . . . . . . . . . . 12 . . . . . . . . . . . . . . . 8 . . 1 . . . . . . Allies Hacked 4 | . . . . . . . . . . . . . . . . . . . . . . . 2 . 1 . . . . . . 1 . . . . . Hacks Repelled 1 | . . . . . . . . . . . . . . . . . . . . . . . . . . . . . . . . 1 . . . . . Allies | -11 -10 -10 -10 -9 -8 -8 -7 -7 -6 -6 -6 -6 -6 -6 -6 -6 -5 -5 -5 -5 -5 -5 -4 -4 -4 -4 -4 -4 -3 -3 -2 -2 -2 -2 -1 -1 -1 -------- Run | Scr Mat Min Exi Min Mat Gar Fac Gar Fac Was Fac Ext Cet Arc Hub Gar Fac Was Fac Gar Fac Gar Fac Was Fac Gar Fac Gar Res Tes Res Qua Sec Gar Acc Com Ac0 Total Allies 162 | . . . . 3 . . . 9 . 19 . 18 . . 2 1 1 . 2 3 2 10 7 20 5 14 . 14 9 . 4 4 . 6 2 7 . Largest Group 25 | . . . . 3 3 . . 2 . 19 18 25 18 10 2 2 1 . 1 2 1 8 8 20 19 9 9 7 8 1 3 3 1 2 1 2 . Highest-Rated Group 959 | . . . . 40 40 . . 32 . 696 650 959 771 451 64 64 14 . 49 49 41 143 197 767 717 460 460 234 313 64 252 252 64 100 58 94 . Highest-Rated Ally 156 | . . . . 16 16 . . 16 . 50 50 156 156 156 37 32 14 . 49 49 41 29 49 50 56 58 58 49 64 64 93 84 64 64 58 64 . Total Orders 111 | . . . . . 1 . . . 8 . . 6 7 2 2 . 10 . 8 . . 7 24 . . 9 2 7 5 . . 5 8 . . . . STAY 39 | . . . . . . . . . . . . . 4 1 1 . 2 . 4 . . 4 8 . . 6 1 4 3 . . . 1 . . . . ROAM 6 | . . . . . 1 . . . . . . 5 . . . . . . . . . . . . . . . . . . . . . . . . . FOLLOW 32 | . . . . . . . . . . . . 1 3 1 1 . 1 . 4 . . 3 9 . . 3 1 3 2 . . . . . . . . AID 1 | . . . . . . . . . . . . . . . . . 1 . . . . . . . . . . . . . . . . . . . . EXPLORE 23 | . . . . . . . . . 4 . . . . . . . 3 . . . . . 6 . . . . . . . . 4 6 . . . . RETURN 10 | . . . . . . . . . 4 . . . . . . . 3 . . . . . 1 . . . . . . . . 1 1 . . . . Ally Attacks 1044 | . . . . 15 16 . . 30 . . . 138 118 25 8 11 . . 13 9 6 55 76 9 192 35 35 21 106 2 14 64 4 17 5 20 . Total Damage 25161 | . . . . 156 151 . . 304 . . . 3384 3078 432 163 436 . . 450 150 369 564 1061 187 5378 1196 1461 570 2525 152 450 1490 133 484 137 300 . Kills 156 | . . . . 3 3 . . 3 . . . 24 15 2 3 1 . . 3 2 2 3 7 1 28 7 9 5 20 . 3 8 . . 1 3 . Allies Corrupted 1 | . . . . . . . . . . . . . . . . . . . . . . . . . . . . . . . . . . 1 . . . Allies Melted 1 | . . . . . . . . . . . . . . . . . . . . 1 . . . . . . . . . . . . . . . . . Intel | -11 -10 -10 -10 -9 -8 -8 -7 -7 -6 -6 -6 -6 -6 -6 -6 -6 -5 -5 -5 -5 -5 -5 -4 -4 -4 -4 -4 -4 -3 -3 -2 -2 -2 -2 -1 -1 -1 ------- Run | Scr Mat Min Exi Min Mat Gar Fac Gar Fac Was Fac Ext Cet Arc Hub Gar Fac Was Fac Gar Fac Gar Fac Was Fac Gar Fac Gar Res Tes Res Qua Sec Gar Acc Com Ac0 Robot Analysis Total 5 | . 2 . . . . . . . . . . . . . . . . . . . . . . . . . . . . 1 . . . . 2 . . Derelict Logs Recovered 3 | . . 1 . 2 . . . . . . . . . . . . . . . . . . . . . . . . . . . . . . . . . Drone Launches 26 | . . . . . . . . . 5 . . . . . . . 3 . . . . . 9 . . . . . . . . 4 5 . . . . Drone Recoveries 14 | . . . . . . . . . 4 . . . . . . . 2 . . . . . 3 . . . . . . . . 1 4 . . . . Exploration | -11 -10 -10 -10 -9 -8 -8 -7 -7 -6 -6 -6 -6 -6 -6 -6 -6 -5 -5 -5 -5 -5 -5 -4 -4 -4 -4 -4 -4 -3 -3 -2 -2 -2 -2 -1 -1 -1 ------------- Run | Scr Mat Min Exi Min Mat Gar Fac Gar Fac Was Fac Ext Cet Arc Hub Gar Fac Was Fac Gar Fac Gar Fac Was Fac Gar Fac Gar Res Tes Res Qua Sec Gar Acc Com Ac0 Turns Passed 67639 | 3 1210 956 685 1177 2771 1074 1069 1791 1478 1079 204 965 567 2309 1152 2060 827 234 648 1551 895 2575 1714 538 1006 3576 484 2691 2825 1619 1326 2235 3631 1822 1047 14339 1506 Spaces Moved 28186 | 3 592 566 426 689 1067 465 541 941 478 404 120 529 229 466 441 887 361 90 318 753 327 1279 847 316 542 1751 217 1173 870 812 682 1127 1646 797 442 4211 781 Core 69 | . . . . . . . . . . . . . . 69 . . . . . . . . . . . . . . . . . . . . . . . Treads 26287 | . 499 566 426 689 299 . 466 941 478 404 120 529 229 397 441 887 361 90 318 753 327 1279 847 316 542 1751 217 1173 870 812 682 1127 1439 797 442 4171 602 Legs 102 | 3 93 . . . . . . . . . . . . . . . . . . . . . . . . . . . . . . . . . . 6 . Wheels 1308 | . . . . . 768 465 75 . . . . . . . . . . . . . . . . . . . . . . . . . . . . . . Hover . | . . . . . . . . . . . . . . . . . . . . . . . . . . . . . . . . . . . . . . Flight . | . . . . . . . . . . . . . . . . . . . . . . . . . . . . . . . . . . . . . . Fastest Speed 120 | 120 120 160 160 160 160 170 160 160 160 160 160 160 160 160 160 160 160 160 160 160 160 160 160 160 160 160 160 160 155 152 160 160 160 160 160 145 145 Average Speed 176 | 120 154 160 160 160 179 184 163 160 247 176 160 160 160 450 188 207 164 160 160 162 162 161 160 160 160 160 160 160 155 157 160 160 160 160 160 208 145 Slowest Speed 2200 | 120 200 160 160 160 260 185 185 160 260 260 160 160 160 2200 360 260 260 160 160 260 260 260 160 160 160 160 160 160 160 252 160 263 160 160 160 540 145 Overloaded Moves . | . . . . . . . . . . . . . . . . . . . . . . . . . . . . . . . . . . . . . . Propulsion Burnouts . | . . . . . . . . . . . . . . . . . . . . . . . . . . . . . . . . . . . . . . Robots Hopped . | . . . . . . . . . . . . . . . . . . . . . . . . . . . . . . . . . . . . . . Cave-ins Triggered 1 | . . . . . . . 1 . . . . . . . . . . . . . . . . . . . . . . . . . . . . . . Teleports 4 | . . . . . . . . . . . . . . . . . . . . . . . . . . . . . . . . 2 . . . 1 1 Microwarps 43 | . . . . . . . . . . . . . . . . . . . . . . . . . . . . . . . . . 20 . . 3 20 Exploration Rate (%) 55 | 2 93 95 70 99 77 66 17 61 16 90 6 70 76 88 51 78 15 67 6 68 6 84 21 95 19 84 9 80 32 93 18 91 78 72 13 81 29 Regions Visited 37 Branch Regions 12 Pre-discovered Areas 4 | . 1 1 1 1 . . . . . . . . . . . . . . . . . . . . . . . . . . . . . . . . . Known Exits Taken 11 | . . . . . 1 . 1 . . . . . . . 1 . . . 1 . 1 . . . 1 . 1 . 1 1 1 . 1 . . . . Unknown Exits Taken 12 | 1 1 1 1 1 . . . . . . 1 1 1 1 . . . . . . . . . . . . . . . . . 1 . . 1 1 . Scrap Searched 2 | . . 1 . 1 . . . . . . . . . . . . . . . . . . . . . . . . . . . . . . . . . Spaces Dug 358 | . 1 . . 15 26 . 1 . 11 . 15 1 . . . . 3 . 10 . 1 . 10 . 42 . 3 11 28 10 19 14 42 . 24 48 23 Terrain Destroyed 1363 | . 6 27 . 35 74 13 17 8 31 7 15 2 19 . 22 22 24 4 42 1 27 3 35 . 45 3 4 47 77 60 26 20 89 8 34 98 418 Melee 19 | . . . . . 8 . 1 . . . . . . . . . . . . . . . . . . . . . . . . . . . 10 . . Projectile 475 | . 1 1 . 3 11 . 2 . 22 7 . 2 . . 22 1 24 4 16 1 27 3 14 . 8 3 4 . 44 20 26 20 89 1 24 36 39 AOE 869 | . 5 26 . 32 55 13 14 8 9 . 15 . 19 . . 21 . . 26 . . . 21 . 37 . . 47 33 40 . . . 7 . 62 379 Terrain Rammed . | . . . . . . . . . . . . . . . . . . . . . . . . . . . . . . . . . . . . . . Walls Destroyed . | . . . . . . . . . . . . . . . . . . . . . . . . . . . . . . . . . . . . . . Machines Disabled . | . . . . . . . . . . . . . . . . . . . . . . . . . . . . . . . . . . . . . . Actions | -11 -10 -10 -10 -9 -8 -8 -7 -7 -6 -6 -6 -6 -6 -6 -6 -6 -5 -5 -5 -5 -5 -5 -4 -4 -4 -4 -4 -4 -3 -3 -2 -2 -2 -2 -1 -1 -1 --------- Run | Scr Mat Min Exi Min Mat Gar Fac Gar Fac Was Fac Ext Cet Arc Hub Gar Fac Was Fac Gar Fac Gar Fac Was Fac Gar Fac Gar Res Tes Res Qua Sec Gar Acc Com Ac0 Total 43728 | 2 773 590 433 733 1679 648 686 1153 663 631 130 614 413 602 636 1046 502 138 426 1024 589 1721 1168 342 639 2469 321 1951 2221 1081 847 1482 2549 1318 706 9695 1107 Wait 10904 | . 74 . 1 10 366 93 78 97 20 52 2 33 138 11 69 41 32 2 48 140 93 298 188 13 19 564 36 657 1101 63 35 136 619 428 152 5009 186 Move 27778 | 2 591 565 425 688 1066 464 541 940 478 403 119 528 228 465 440 886 361 89 317 752 326 1278 847 315 541 1750 217 1172 869 811 682 1126 1459 796 441 4179 621 Hop . | . . . . . . . . . . . . . . . . . . . . . . . . . . . . . . . . . . . . . . Pick Up 414 | . 17 1 3 3 20 7 8 13 18 12 1 1 5 3 7 14 9 1 4 15 8 11 13 . 4 24 4 12 10 12 8 17 30 12 7 55 25 Fast Attach 338 | . 2 . . . 14 1 4 4 5 8 2 3 6 21 15 6 8 2 1 6 8 10 15 3 4 4 2 . 20 13 5 28 23 1 6 67 21 Attach 289 | . 5 . . . 3 1 5 4 5 1 . . 1 3 . 6 4 . 4 14 20 8 8 . 2 10 3 7 12 21 12 9 36 11 6 40 28 Detach 257 | . 1 . . . 4 1 2 1 4 1 . 1 3 2 6 5 2 . 2 14 15 4 9 . 1 6 3 4 10 22 10 7 20 11 4 60 22 Swap 460 | . 4 4 . 5 28 12 17 18 19 5 2 6 8 3 5 14 14 13 16 13 12 9 12 2 16 10 5 15 23 17 6 34 48 6 12 16 11 Drop 635 | . 10 1 4 6 29 6 8 11 17 27 3 5 12 24 23 13 17 6 3 17 16 9 21 3 9 20 6 9 29 25 4 43 45 10 11 98 35 Fire 2419 | . 65 14 . 19 137 23 20 65 91 122 1 34 12 70 67 48 53 25 27 53 88 91 52 6 39 74 43 57 139 90 76 78 259 43 48 132 158 Melee 49 | . . . . . 9 . 2 . . . . . . . . . . . . . . . . . . . . . . . . 4 5 . 17 12 . Ram 1 | . . . . . . . . . . . . . . . . . . . . . . . . . . . . . . 1 . . . . . . . Kick 1 | . 1 . . . . . . . . . . . . . . . . . . . . . . . . . . . . . . . . . . . . Crush 69 | . 3 5 . 2 3 . 1 . 6 . . 1 . . 4 . 2 . 2 . 3 . . . 4 1 2 . 8 6 9 . 5 . 2 . . Escape Stasis 81 | . . . . . . 40 . . . . . 1 . . . 13 . . . . . . . . . . . . . . . . . . . 27 . Rewire 32 | . . . . . . . . . . . . 1 . . . . . . 2 . . 3 2 . . 6 . 18 . . . . . . . . . Trap . | . . . . . . . . . . . . . . . . . . . . . . . . . . . . . . . . . . . . . . Miscellaneous 1 | . . . . . . . . . . . . . . . . . . . . . . . 1 . . . . . . . . . . . . . . Route ------- -11/Scrapyard -10/Materials (discovered 5 exits: *Mat x3 / [*Min x2]) -10/Mines (discovered 3 exits: *Mat x2 / *Exi) -10/Exiles (discovered 2 exits: [*Min x2]) -9/Mines (discovered 2 exits: *Mat x2) -8/Materials (discovered 3 exits: *Fac x2 / Gar) -8/Garrison (discovered 2 exits: *Fac x2) -7/Factory (discovered 2 exits: *Fac / Gar) -7/Garrison (discovered 3 exits: *Fac x3) -6/Factory -6/Waste -6/Factory -6/Extension (discovered 2 exits: *Fac / *Cet) -6/Cetus (discovered 2 exits: *Fac / [*Arc]) -6/Archives (discovered 3 exits: *Fac / *Hub x2) -6/Hub_04(d) (discovered 4 exits: *Fac x3 / Gar) -6/Garrison (discovered 2 exits: *Fac x2) -5/Factory (discovered 2 exits: Upp x2) -5/Waste -5/Factory (discovered 2 exits: *Upp / Gar) -5/Garrison (discovered 3 exits: *Fac x3) -5/Factory -5/Garrison (discovered 3 exits: *Fac x3) -4/Factory (discovered 2 exits: *Res / [*Upp]) -4/Waste -4/Factory (discovered 2 exits: *Res / Gar) -4/Garrison (discovered 3 exits: *Fac x3) -4/Factory -4/Garrison (discovered 3 exits: *Res x3) -3/Research (discovered 3 exits: Arm / *Tes x2) -3/Testing -2/Research (discovered 2 exits: *Qua x2) -2/Quarantine (discovered 2 exits: *Acc / *Sec) -2/Section 7 (discovered 2 exits: *Acc / Gar) -2/Garrison (discovered 2 exits: *Acc x2) -1/Access -1/Command (discovered 3 exits: [*Sur x2] / [*Ac0]) -1/Access_0 0b11 Command History --------- Turn | Location | Event 1 | -11/Scrapyard | Discovered new exit (range 1) 4 | -11/Scrapyard | Entered Materials 186 | -10/Materials | Central database locked down 227 | -10/Materials | Discovered new exit (range 9) 311 | -10/Materials | Build established: Mutant 453 | -10/Materials | Discovered new exit (range 16) 695 | -10/Materials | Discovered new exit (range 3) 800 | -10/Materials | Repaired Assault Rifle 878 | -10/Materials | Discovered new exit (range 8) 1033 | -10/Materials | Discovered new exit (range 13) 1214 | -10/Materials | Entered Mines 1226 | -10/Mines | Identified exit to Materials 1484 | -10/Mines | Learned location of Storage (-7) 1510 | -10/Mines | Discovered exit to Materials (range 5) 1701 | -10/Mines | Found a hidden stash of uninstalled traps 2095 | -10/Mines | Deemed a non-threat by the Exiles lab entrance 2095 | -10/Mines | Discovered new exit (range 5) 2170 | -10/Mines | Entered Exiles 2196 | -10/Exiles | Discovered new exit (range 15) 2214 | -10/Exiles | Met 8R-AWN 2236 | -10/Exiles | Met EX-HEX 2279 | -10/Exiles | Met EX-BIN 2351 | -10/Exiles | Met EX-DEC 2359 | -10/Exiles | Learned location of Zion (-7) 2635 | -10/Exiles | Aligned with FarCom system 2637 | -10/Exiles | Given EX-Vault access code 2677 | -10/Exiles | Opened EX-Vault 2687 | -10/Exiles | Found Trap Reconfigurator 2697 | -10/Exiles | Found Firepult 2728 | -10/Exiles | Warned to stay clear of 0b10 Research branches 2839 | -10/Exiles | Discovered new exit (range 10) 2855 | -10/Exiles | Stole two prototypes: Firepult, Trap Reconfigurator 2855 | -10/Exiles | Entered Mines 2928 | -9/Mines | Assembled infested the area 3018 | -9/Mines | Discovered new exit (range 9) 3133 | -9/Mines | Discovered new exit (range 8) 3151 | -9/Mines | Assisted by bots powering up and referring to "LRC-V3" 3304 | -9/Mines | Received a Rocket Launcher from a helpful Derelict 3784 | -9/Mines | Learned Materials emergency access door positions 4032 | -9/Mines | Entered Materials 4032 | -8/Materials | Accompanied by 3 allies 4032 | -8/Materials | Evolved 4 slots: Utility x4 4407 | -8/Materials | Build established: Scavenger-Mutant 4826 | -8/Materials | Discovered new exit (range 16) 5894 | -8/Materials | Build established: Mutant 6077 | -8/Materials | Discovered new exit (range 3) 6794 | -8/Materials | Identified exit to Garrison 6803 | -8/Materials | Entered Garrison 6868 | -8/Garrison | Triggered checkpoint 6875 | -8/Garrison | Triggered checkpoint 7024 | -8/Garrison | Discovered new exit (range 10) 7066 | -8/Garrison | Triggered checkpoint 7369 | -8/Garrison | Discovered new exit (range 12) 7401 | -8/Garrison | Installed Relay Interface Framework 7484 | -8/Garrison | Triggered checkpoint 7538 | -8/Garrison | Garrison Relay disabled 7776 | -8/Garrison | Garrison Relay disabled 7877 | -8/Garrison | Entered Factory 7877 | -7/Factory | Evolved 2 slots: Propulsion x2 7879 | -7/Factory | FarCom data flow suspended 8150 | -7/Factory | Crushed by falling debris 8280 | -7/Factory | Discovered new exit (range 17) 8382 | -7/Factory | Build established: Bothacker-Mutant 8406 | -7/Factory | Repaired Hvy. Armor Plating 8796 | -7/Factory | Repaired Hvy. Armor Plating 8855 | -7/Factory | Build established: Mutant 8946 | -7/Factory | Identified exit to Garrison 8946 | -7/Factory | Entered Garrison 9066 | -7/Garrison | Triggered checkpoint 9086 | -7/Garrison | Garrison Relay disabled 9200 | -7/Garrison | Triggered checkpoint 9389 | -7/Garrison | Build established: Bothacker-Mutant 9395 | -7/Garrison | Triggered checkpoint 9626 | -7/Garrison | Discovered new exit (range 14) 9811 | -7/Garrison | Discovered new exit (range 15) 9850 | -7/Garrison | Expanded RIF knowledge: Zone Cloak 9924 | -7/Garrison | Triggered checkpoint 10032 | -7/Garrison | Discovered new exit (range 10) 10114 | -7/Garrison | Triggered checkpoint 10151 | -7/Garrison | Garrison Relay disabled 10268 | -7/Garrison | Triggered checkpoint 10571 | -7/Garrison | System corruption reached 10% 10737 | -7/Garrison | Entered Factory 10737 | -6/Factory | Evolved 2 slots: Power x1, Utility x1 11705 | -6/Factory | Spotted B-75 Beast 11763 | -6/Factory | Repaired Imp. EM Pulse Cannon 11829 | -6/Factory | Destroyed B-75 Beast 12215 | -6/Factory | Cargo convoy interrupted 12215 | -6/Factory | Sucked down chute 12215 | -6/Factory | Entered Waste 12271 | -6/Waste | Spotted C-40 Crusher 12291 | -6/Waste | Spotted C-40 Crusher 12298 | -6/Waste | Spotted C-40 Crusher 12298 | -6/Waste | Spotted C-40 Crusher 12410 | -6/Waste | Destroyed C-40 Crusher 12454 | -6/Waste | Spotted C-40 Crusher 12454 | -6/Waste | Spotted C-40 Crusher 12506 | -6/Waste | Destroyed C-40 Crusher 12592 | -6/Waste | Destroyed C-40 Crusher 12628 | -6/Waste | Found Damper Plating 12643 | -6/Waste | Destroyed C-40 Crusher 12653 | -6/Waste | Found Damper Plating 12706 | -6/Waste | Destroyed C-40 Crusher 12828 | -6/Waste | Destroyed C-40 Crusher 12837 | -6/Waste | Found Damper Plating 12882 | -6/Waste | Warlord forces began an assault 12915 | -6/Waste | Build established: Scavenger-Mutant 12975 | -6/Waste | Discovered new exit (range 13) 13294 | -6/Waste | Entered Factory 13294 | -6/Factory | Accompanied by 18 allies 13449 | -6/Factory | Discovered new exit (range 15) 13498 | -6/Factory | Entered Extension 13498 | -6/Extension | Accompanied by 18 allies 13545 | -6/Extension | Rescued a captive Derelict 13593 | -6/Extension | Rescued A7 13597 | -6/Extension | Rescued a captive Derelict 13610 | -6/Extension | Rescued a captive Derelict 13644 | -6/Extension | Rescued a captive Derelict 13645 | -6/Extension | Rescued a captive Derelict 14000 | -6/Extension | Spotted B-75 Beast 14007 | -6/Extension | Allies destroyed B-75 Beast 14014 | -6/Extension | Spotted B-75 Beast 14025 | -6/Extension | Allies destroyed B-75 Beast 14382 | -6/Extension | Discovered new exit (range 16) 14384 | -6/Extension | Discovered new exit (range 15) 14457 | -6/Extension | Build established: Commander-Mutant 14463 | -6/Extension | Entered Cetus 14463 | -6/Cetus | Accompanied by 18 allies (A7) 14463 | -6/Cetus | 2 allies did not survive the journey 14468 | -6/Cetus | Acquired a Cetus Manufacturing Module code from A7 14488 | -6/Cetus | Spotted Cetus Guard 14488 | -6/Cetus | Spotted Cetus Guard 14490 | -6/Cetus | Spotted Cetus Guard 14491 | -6/Cetus | Spotted Cetus Guard 14500 | -6/Cetus | Allies destroyed Cetus Guard 14514 | -6/Cetus | Allies destroyed Cetus Guard 14514 | -6/Cetus | Allies destroyed Cetus Guard 14514 | -6/Cetus | Allies destroyed Cetus Guard 14545 | -6/Cetus | Cetus Manufacturing Module disabled 14603 | -6/Cetus | Discovered new exit (range 16) 14647 | -6/Cetus | Spotted Cetus Guard 14647 | -6/Cetus | Spotted Cetus Guard 14650 | -6/Cetus | Spotted Cetus Guard 14655 | -6/Cetus | Destroyed Cetus Guard 14659 | -6/Cetus | Spotted Cetus Guard 14660 | -6/Cetus | Destroyed Cetus Guard 14662 | -6/Cetus | Destroyed Cetus Guard 14668 | -6/Cetus | Discovered new exit (range 15) 14669 | -6/Cetus | Destroyed Cetus Guard 14684 | -6/Cetus | Met Revision 17 14690 | -6/Cetus | System corruption reached 10% 14768 | -6/Cetus | Build established: Scavenger-Mutant 14810 | -6/Cetus | Escorted A7 to Cetus Mainframe 15030 | -6/Cetus | Entered Archives 15030 | -6/Archives | Accompanied by 10 allies (A7) 15035 | -6/Archives | Received a hacking code to weaken MAIN.C 15138 | -6/Archives | Discovered new exit (range 14) 17144 | -6/Archives | Discovered new exit (range 16) 17204 | -6/Archives | Discovered new exit (range 13) 17339 | -6/Archives | Entered Hub_04(d) 17339 | -6/Hub_04(d) | Accompanied by 1 ally 17339 | -6/Hub_04(d) | Discovered new exit (range 10) 17583 | -6/Hub_04(d) | Discovered new exit (range 11) 17962 | -6/Hub_04(d) | Discovered new exit (range 7) 18052 | -6/Hub_04(d) | Network Hub disabled 18086 | -6/Hub_04(d) | Spotted Lightning 18100 | -6/Hub_04(d) | Spotted Lightning 18130 | -6/Hub_04(d) | Destroyed Lightning 18151 | -6/Hub_04(d) | Destroyed Lightning 18159 | -6/Hub_04(d) | Spotted Lightning 18184 | -6/Hub_04(d) | Destroyed Lightning 18231 | -6/Hub_04(d) | Found Prototype Energy Cannon 18231 | -6/Hub_04(d) | Identified EMDS 18263 | -6/Hub_04(d) | Found Prototype Device 18263 | -6/Hub_04(d) | Identified Exp. Phase Shifter 18268 | -6/Hub_04(d) | Found Prototype Device 18268 | -6/Hub_04(d) | Identified EM Dispersion Field 18280 | -6/Hub_04(d) | Found Prototype Processor 18280 | -6/Hub_04(d) | Identified Exp. Targeting Computer 18295 | -6/Hub_04(d) | Found EMDS 18353 | -6/Hub_04(d) | Found EM Dispersion Field 18406 | -6/Hub_04(d) | Identified exit to Garrison 18491 | -6/Hub_04(d) | Entered Garrison 18491 | -6/Garrison | Accompanied by 2 allies 18504 | -6/Garrison | Expanded RIF knowledge: Robot Detection 18568 | -6/Garrison | Triggered checkpoint 18660 | -6/Garrison | Garrison Relay disabled 18785 | -6/Garrison | Triggered checkpoint 18826 | -6/Garrison | Triggered checkpoint 18954 | -6/Garrison | Triggered checkpoint 18996 | -6/Garrison | Garrison Relay disabled 19076 | -6/Garrison | Discovered new exit (range 8) 19191 | -6/Garrison | Triggered checkpoint 19458 | -6/Garrison | Triggered checkpoint 19490 | -6/Garrison | Garrison Relay disabled 19621 | -6/Garrison | Discovered new exit (range 10) 19735 | -6/Garrison | Build established: Bothacker-Mutant 20079 | -6/Garrison | Build established: Scavenger-Mutant 20098 | -6/Garrison | Triggered checkpoint 20551 | -6/Garrison | Entered Factory 20551 | -5/Factory | Evolved 2 slots: Utility x2 20706 | -5/Factory | Identified exit to Upper Caves 21056 | -5/Factory | Build established: Bothacker-Mutant 21088 | -5/Factory | Cargo convoy interrupted 21378 | -5/Factory | Sucked down chute 21378 | -5/Factory | Entered Waste 21386 | -5/Waste | Spotted C-40 Crusher 21393 | -5/Waste | EMP discharged 21410 | -5/Waste | Spotted C-40 Crusher 21410 | -5/Waste | Spotted C-40 Crusher 21426 | -5/Waste | Destroyed C-40 Crusher 21469 | -5/Waste | Spotted C-40 Crusher 21490 | -5/Waste | Spotted C-40 Crusher 21492 | -5/Waste | Spotted C-40 Crusher 21493 | -5/Waste | EMP discharged 21539 | -5/Waste | Destroyed C-40 Crusher 21580 | -5/Waste | Discovered new exit (range 11) 21593 | -5/Waste | EMP discharged 21612 | -5/Waste | Entered Factory 21720 | -5/Factory | Spotted B-75 Beast 21730 | -5/Factory | Destroyed B-75 Beast 21856 | -5/Factory | Garrison activated, responded to threat 22151 | -5/Factory | Discovered exit to Upper Caves (range 14) 22183 | -5/Factory | Identified exit to Garrison 22260 | -5/Factory | Entered Garrison 22260 | -5/Garrison | Accompanied by 1 ally 22324 | -5/Garrison | Triggered checkpoint 22385 | -5/Garrison | Garrison Relay disabled 22495 | -5/Garrison | P-70 Sage assimilated allied S-27 Virus 22562 | -5/Garrison | Triggered checkpoint 22625 | -5/Garrison | Spotted B-75 Beast 22626 | -5/Garrison | Triggered checkpoint 22641 | -5/Garrison | Destroyed B-75 Beast 22740 | -5/Garrison | Discovered new exit (range 11) 22790 | -5/Garrison | Triggered checkpoint 22874 | -5/Garrison | Garrison Relay disabled 23016 | -5/Garrison | Discovered new exit (range 9) 23062 | -5/Garrison | Triggered checkpoint 23139 | -5/Garrison | Discovered new exit (range 13) 23167 | -5/Garrison | Expanded RIF knowledge: Alert ID Control 23276 | -5/Garrison | Triggered checkpoint 23304 | -5/Garrison | Garrison Relay disabled 23809 | -5/Garrison | System corruption reached 10% 23811 | -5/Garrison | Entered Factory 23908 | -5/Factory | Identified exit to Garrison 24706 | -5/Factory | Entered Garrison 24812 | -5/Garrison | Found Quantum Capacitor 24951 | -5/Garrison | Triggered checkpoint 25021 | -5/Garrison | Destroyed 7 combat bots 25073 | -5/Garrison | Discovered new exit (range 10) 25140 | -5/Garrison | Triggered checkpoint 25179 | -5/Garrison | Garrison Relay disabled 25338 | -5/Garrison | Discovered new exit (range 12) 25369 | -5/Garrison | Expanded RIF knowledge: Command Fork 25408 | -5/Garrison | Triggered checkpoint 25496 | -5/Garrison | Build established: Botlord-Mutant 25506 | -5/Garrison | Garrison Relay disabled 25900 | -5/Garrison | Triggered checkpoint 25936 | -5/Garrison | Garrison Relay disabled 26012 | -5/Garrison | Triggered checkpoint 26471 | -5/Garrison | Triggered checkpoint 26550 | -5/Garrison | Triggered checkpoint 26648 | -5/Garrison | Triggered checkpoint 26648 | -5/Garrison | Garrison Relay disabled 26746 | -5/Garrison | Triggered checkpoint 26765 | -5/Garrison | Discovered new exit (range 15) 27281 | -5/Garrison | Entered Factory 27281 | -4/Factory | Accompanied by 7 allies 27281 | -4/Factory | Evolved 2 slots: Utility x2 27532 | -4/Factory | Found Quantum Capacitor 27738 | -4/Factory | Repaired Imp. Heavy Armor Plating 27848 | -4/Factory | Repaired Centrium Heavy Treads 27943 | -4/Factory | Repaired Broken Adv. Force Field? 28026 | -4/Factory | Repaired Phase Cannon 28071 | -4/Factory | Repaired Imp. Medium Armor Plating 28205 | -4/Factory | Found Prototype Hackware 28205 | -4/Factory | Identified Exp. Hacking Suite 28371 | -4/Factory | Spotted B-86 Titan 28390 | -4/Factory | Destroyed B-86 Titan 28682 | -4/Factory | Discovered new exit (range 68) 28704 | -4/Factory | Discovered new exit (range 75) 28894 | -4/Factory | P-70 Sage assimilated allied Sentinel 7b 28995 | -4/Factory | Sucked down chute 28995 | -4/Factory | Entered Waste 28996 | -4/Waste | Joined by Warlord forces that had cleared the area 29160 | -4/Waste | A Compactor rumbled back to life 29161 | -4/Waste | Spotted C-40 Crusher 29161 | -4/Waste | Allies destroyed C-40 Crusher 29293 | -4/Waste | Discovered new exit (range 11) 29533 | -4/Waste | Entered Factory 29533 | -4/Factory | Accompanied by 19 allies 29906 | -4/Factory | Allied Derelicts emerged from ambush trap array 30033 | -4/Factory | First assault squad dispatched 30140 | -4/Factory | Discovered new exit (range 10) 30532 | -4/Factory | Identified exit to Garrison 30539 | -4/Factory | Entered Garrison 30539 | -4/Garrison | Accompanied by 1 ally 30654 | -4/Garrison | Triggered checkpoint 30674 | -4/Garrison | Garrison Relay disabled 31226 | -4/Garrison | Triggered checkpoint 31420 | -4/Garrison | Discovered new exit (range 14) 31524 | -4/Garrison | Garrison Relay disabled 31569 | -4/Garrison | Triggered checkpoint 31688 | -4/Garrison | Discovered new exit (range 12) 31953 | -4/Garrison | Discovered new exit (range 12) 31980 | -4/Garrison | Expanded RIF knowledge: Patrol Navigation 32114 | -4/Garrison | Triggered checkpoint 32467 | -4/Garrison | Garrison Relay disabled 32706 | -4/Garrison | Triggered checkpoint 32798 | -4/Garrison | Garrison Relay disabled 34024 | -4/Garrison | Triggered checkpoint 34115 | -4/Garrison | Entered Factory 34115 | -4/Factory | Accompanied by 9 allies 34595 | -4/Factory | Identified exit to Garrison 34599 | -4/Factory | Entered Garrison 35068 | -4/Garrison | Triggered checkpoint 35095 | -4/Garrison | Triggered checkpoint 35520 | -4/Garrison | Triggered checkpoint 35580 | -4/Garrison | Discovered new exit (range 9) 35775 | -4/Garrison | Discovered new exit (range 14) 36010 | -4/Garrison | Discovered new exit (range 9) 36037 | -4/Garrison | Expanded RIF knowledge: Threat Obfuscation 36278 | -4/Garrison | Triggered checkpoint 36353 | -4/Garrison | Garrison Relay disabled 36542 | -4/Garrison | Triggered checkpoint 36562 | -4/Garrison | Garrison Relay disabled 36742 | -4/Garrison | Triggered checkpoint 36765 | -4/Garrison | Garrison Relay disabled 37290 | -4/Garrison | Entered Research 37290 | -3/Research | Accompanied by 7 allies 37290 | -3/Research | Evolved 2 slots: Propulsion x2 37433 | -3/Research | Identified exit to Armory 37433 | -3/Research | Identified exit to Testing 38031 | -3/Research | Fabricated Adv. Force Field (x2) 38102 | -3/Research | Spotted B-86 Titan 38116 | -3/Research | Allies destroyed B-86 Titan 38410 | -3/Research | Spotted B-86 Titan 40115 | -3/Research | Entered Testing 40115 | -3/Testing | Accompanied by 1 ally 40222 | -3/Testing | Spotted PG-GKTFBSOV0F 40228 | -3/Testing | Destroyed PG-GKTFBSOV0F 40231 | -3/Testing | Found Prototype Energy Cannon 40231 | -3/Testing | Identified Imp. Potential Cannon 40236 | -3/Testing | Found Prototype Energy Cannon 40236 | -3/Testing | Identified Potential Cannon 40287 | -3/Testing | System corruption reached 10% 40334 | -3/Testing | Repaired Centrium Heavy Treads 40506 | -3/Testing | Identified exit to Research 40582 | -3/Testing | Found Unknown Launcher 40582 | -3/Testing | Identified Gamma Bomb Array 40639 | -3/Testing | Found Centrium Heavy Armor Plating 40681 | -3/Testing | Found Prototype Launcher 40681 | -3/Testing | Identified Z-bomb Delivery System 40746 | -3/Testing | Found Prototype Launcher 40751 | -3/Testing | Identified Adv. Micro-nuke Launcher 40765 | -3/Testing | Spotted Striker 40821 | -3/Testing | Found Prototype Energy Gun 40821 | -3/Testing | Identified Tachyon Dispersion Ray 41461 | -3/Testing | Found Prototype Device 41461 | -3/Testing | Identified Exp. Hardlight Generator 41655 | -3/Testing | Destroyed 7 combat bots 41734 | -3/Testing | Entered Research 41734 | -2/Research | Evolved 2 slots: Utility x2 41839 | -2/Research | Identified exit to Quarantine 41893 | -2/Research | Found Antimissile System 43058 | -2/Research | Spotted Striker 43058 | -2/Research | Spotted Executioner 43058 | -2/Research | Spotted Executioner 43060 | -2/Research | Entered Quarantine 43060 | -2/Quarantine | Accompanied by 1 ally 43096 | -2/Quarantine | Cryocooling Duct disabled 43111 | -2/Quarantine | Ambient heat levels rising (+20) 43111 | -2/Quarantine | Non-combat units ordered to evacuate 43356 | -2/Quarantine | Found Alien Slashing Weapon 43675 | -2/Quarantine | Discovered new exit (range 15) 43787 | -2/Quarantine | Found Alien Artifact 43787 | -2/Quarantine | Identified Dimensional Node Initializer 43787 | -2/Quarantine | Initialized slip node 43798 | -2/Quarantine | Found Alien Artifact 43798 | -2/Quarantine | Identified Hpw. Transdimensional Reconstructor 43798 | -2/Quarantine | Warped through subspace to slip node 43811 | -2/Quarantine | Found Alien Artifact 43811 | -2/Quarantine | Identified Transdimensional Reconstructor 43811 | -2/Quarantine | Warped through subspace to slip node 43820 | -2/Quarantine | Found Hpw. Transdimensional Reconstructor 44207 | -2/Quarantine | Identified Sigix Broadsword 44560 | -2/Quarantine | Found Alien Impact Weapon 45003 | -2/Quarantine | Identified Core Stripper 45035 | -2/Quarantine | Spotted Fortress 45049 | -2/Quarantine | Destroyed Fortress 45072 | -2/Quarantine | Found Centrium Heavy Armor Plating 45090 | -2/Quarantine | Found Prototype Reactor 45090 | -2/Quarantine | Identified Vortex Chain Reactor 45109 | -2/Quarantine | Found Prototype Device 45109 | -2/Quarantine | Identified Thermal Barrier 45119 | -2/Quarantine | Found Unknown Protection 45119 | -2/Quarantine | Identified Hvy. Insulated Plating 45159 | -2/Quarantine | Found Exp. Force Field 45170 | -2/Quarantine | Found EM Dispersion Field 45284 | -2/Quarantine | Discovered new exit (range 5) 45295 | -2/Quarantine | Entered Section 7 45295 | -2/Section 7 | Accompanied by 1 ally 45506 | -2/Section 7 | Found Alien Artifact 45576 | -2/Section 7 | Found Integrity Redistributor 45932 | -2/Section 7 | Discovered new exit (range 63) 46102 | -2/Section 7 | Found Integrated Reactor 46102 | -2/Section 7 | Installed Integrated Reactor, increased core energy generation (+10) 46369 | -2/Section 7 | Found Integrity Redistributor 47050 | -2/Section 7 | Found Alien Artifact 47053 | -2/Section 7 | Spotted B-90 Cyclops 47099 | -2/Section 7 | Identified Microwarp Drive 47099 | -2/Section 7 | Identified Core Reset Matrix 47354 | -2/Section 7 | Spotted Executioner 47386 | -2/Section 7 | Spotted Executioner 47388 | -2/Section 7 | Spotted B-99 Colossus 47487 | -2/Section 7 | Found Integrity Redistributor 47487 | -2/Section 7 | Used Integrity Redistributor, redistributed integrity from core (-377) 47488 | -2/Section 7 | Core integrity fell below 50% 47490 | -2/Section 7 | Found Integrity Redistributor 47554 | -2/Section 7 | Found Alien Artifact 47554 | -2/Section 7 | Identified LRC Matter Compressor 47554 | -2/Section 7 | Installed LRC Matter Compressor, increased matter storage capacity (+125) 47557 | -2/Section 7 | Found LRC Matter Compressor 47557 | -2/Section 7 | Installed LRC Matter Compressor, increased matter storage capacity (+125) 47567 | -2/Section 7 | Found Alien Artifact 47567 | -2/Section 7 | Identified LRC Boosters 47567 | -2/Section 7 | Installed LRC Boosters, increased mass support (+10) 47724 | -2/Section 7 | Destroyed B-99 Colossus 47751 | -2/Section 7 | Found Prototype Ballistic Gun 47751 | -2/Section 7 | Identified Multirail 47777 | -2/Section 7 | Spotted Alpha 7 48103 | -2/Section 7 | Spotted B-90 Cyclops 48747 | -2/Section 7 | Identified exit to Garrison 48926 | -2/Section 7 | Entered Garrison 48934 | -2/Garrison | Expanded RIF knowledge: Crosswire 49156 | -2/Garrison | Triggered checkpoint 49189 | -2/Garrison | Garrison Relay disabled 49315 | -2/Garrison | Spotted B-90 Cyclops 49354 | -2/Garrison | Destroyed B-90 Cyclops 49452 | -2/Garrison | Triggered checkpoint 49504 | -2/Garrison | Triggered checkpoint 49594 | -2/Garrison | Triggered checkpoint 49976 | -2/Garrison | Discovered new exit (range 14) 50029 | -2/Garrison | Garrison Relay disabled 50172 | -2/Garrison | Discovered new exit (range 8) 50748 | -2/Garrison | Entered Access 50748 | -1/Access | Evolved 2 slots: Weapon x2 50925 | -1/Access | Spotted B-99 Colossus 50969 | -1/Access | Destroyed B-99 Colossus 51007 | -1/Access | Found Multirail 51665 | -1/Access | Discovered new exit (range 8) 51795 | -1/Access | Entered Command 52250 | -1/Command | Destroyed M Guard 52255 | -1/Command | Destroyed M Guard 52260 | -1/Command | Spotted Combat Programmer 52264 | -1/Command | Spotted Combat Programmer 52274 | -1/Command | Destroyed Combat Programmer 52286 | -1/Command | Destroyed Combat Programmer 52286 | -1/Command | All MAIN.C guards destroyed 52316 | -1/Command | Found Corrupted Prototype Device 52316 | -1/Command | Identified AEGIS Remote Shield 52329 | -1/Command | Found Corrupted Prototype Protection 52329 | -1/Command | Identified Hvy. Regenerative Plating 52343 | -1/Command | System corruption reached 10% 52399 | -1/Command | Found Corrupted Hvy. Regenerative Plating 52469 | -1/Command | Found Corrupted Prototype Reactor 52476 | -1/Command | Found Corrupted Prototype Reactor 52665 | -1/Command | Build established: Hauler-Mutant 52748 | -1/Command | Met MAIN.C 52753 | -1/Command | 0b10 Conduit disabled 52762 | -1/Command | Destroyed MAIN.C Shell 52764 | -1/Command | MAIN.C activated Command garrisons 52824 | -1/Command | Destroyed MAIN.C 52827 | -1/Command | Identified Zero-point Reactor (x2) 52852 | -1/Command | Lost 6 parts (1p4u1w) 56017 | -1/Command | Spotted B-99 Colossus 56027 | -1/Command | Destroyed B-99 Colossus 56105 | -1/Command | Found Multirail 56174 | -1/Command | Found Corrupted Zero-point Reactor 56459 | -1/Command | Build established: Scavenger-Mutant 57867 | -1/Command | Found Prototype Energy Cannon 57867 | -1/Command | Identified Cld. Nova Cannon 57882 | -1/Command | Found Prototype Processor 57882 | -1/Command | Identified Exp. Armor Integrity Analyzer 57887 | -1/Command | Found Prototype Device 57887 | -1/Command | Identified System Purifier 57893 | -1/Command | Found Prototype Processor 57893 | -1/Command | Identified Exp. Melee Analysis Suite 57951 | -1/Command | Found Vortex Chain Reactor 57954 | -1/Command | Found Zero-point Reactor 58031 | -1/Command | Found Exp. Focal Shield 58151 | -1/Command | Build established: Scavenger-Gladiator 58858 | -1/Command | Found Centrium Heavy Armor Plating 58978 | -1/Command | Discovered new exit (range 9) 59214 | -1/Command | Found Adv. Powered Armor 59218 | -1/Command | Found Adv. Powered Armor 61246 | -1/Command | Build established: Scavenger-Mutant 61378 | -1/Command | Found Prototype Processor 61378 | -1/Command | Identified Exp. Core Analyzer 61404 | -1/Command | Found Corrupted Prototype Device 61404 | -1/Command | Identified Adv. Kinecellerator 61534 | -1/Command | Found Exp. Targeting Computer 61535 | -1/Command | Discovered new exit (range 10) 61537 | -1/Command | Found Adv. Kinecellerator 61548 | -1/Command | Found Exp. Targeting Computer 61577 | -1/Command | Found Adv. Kinecellerator 62154 | -1/Command | Found Unknown Launcher 62154 | -1/Command | Identified Fusion Bomb Launcher 62792 | -1/Command | Spotted B-99 Colossus 63000 | -1/Command | Destroyed B-99 Colossus 66123 | -1/Command | Warped through subspace to slip node 66123 | -1/Command | Discovered new exit (range 4) 66134 | -1/Command | Entered Access_0 66136 | -1/Access_0 | Met Architect 66137 | -1/Access_0 | Architect warped through subspace 66138 | -1/Access_0 | Destroyed A8 66195 | -1/Access_0 | Architect warped through subspace 66222 | -1/Access_0 | Found Corrupted Prototype Device 66222 | -1/Access_0 | Identified Desublimator 66230 | -1/Access_0 | Found Corrupted Prototype Device 66230 | -1/Access_0 | Identified Exp. Weapon Cycler 66253 | -1/Access_0 | Architect warped through subspace 66292 | -1/Access_0 | Found Prototype Device 66292 | -1/Access_0 | Identified Exp. ECM Suite 66296 | -1/Access_0 | Found Prototype Device 66296 | -1/Access_0 | Identified Exp. Sensor Array 66324 | -1/Access_0 | Architect warped through subspace 66375 | -1/Access_0 | Architect warped through subspace 66434 | -1/Access_0 | Architect warped through subspace 66550 | -1/Access_0 | Architect warped through subspace 66601 | -1/Access_0 | Architect warped through subspace 66625 | -1/Access_0 | Subspace Access Node disabled 66657 | -1/Access_0 | Architect warped through subspace 66712 | -1/Access_0 | Architect warped through subspace 66728 | -1/Access_0 | A6 warped into view 66739 | -1/Access_0 | Destroyed A6 66759 | -1/Access_0 | Architect warped through subspace 66804 | -1/Access_0 | Architect warped through subspace 66823 | -1/Access_0 | Found Corrupted Prototype Protection 66844 | -1/Access_0 | Architect warped through subspace 66888 | -1/Access_0 | Architect warped through subspace 66955 | -1/Access_0 | Architect warped through subspace 67010 | -1/Access_0 | Architect warped through subspace 67118 | -1/Access_0 | Architect warped through subspace 67184 | -1/Access_0 | Architect warped through subspace 67246 | -1/Access_0 | Found Corrupted Prototype Protection 67278 | -1/Access_0 | Used Integrity Redistributor, redistributed integrity from core (-321) 67279 | -1/Access_0 | Core integrity fell below 50% 67304 | -1/Access_0 | Architect warped through subspace 67368 | -1/Access_0 | Architect warped through subspace 67430 | -1/Access_0 | Architect warped through subspace 67484 | -1/Access_0 | Architect warped through subspace 67519 | -1/Access_0 | Architect warped through subspace 67553 | -1/Access_0 | A5 warped into view 67617 | -1/Access_0 | Core integrity fell below 20% 67630 | -1/Access_0 | Found Hpw. Transdimensional Reconstructor 67630 | -1/Access_0 | Warped through subspace to slip node 67630 | -1/Access_0 | Discovered new exit (range 8) 67640 | *** | Establishing 0b11! Last Messages --------------- 67607_ Destroyed Prototype Device. 67607_ A5 knocked back. 67609_ Penetrated by Quantum Shear. 67610_ Ended siege mode. 67610_ Acquired Exp. Energy Well. 67612_ Dropped Hvy. Regenerative Plating. 67613_ Penetrated by Quantum Shear. 67613_ Quantum Shear penetrates Wall. 67614_ Acquired Hvy. Regenerative Plating. 67615_ Microwarped (distance 5). 67616_ Microwarped (distance 11). 67620_ Graviton Cannon severed. 67621_ Acquired Graviton Cannon. 67624_ Microwarped (distance 6). 67625_ Workstation disabled. 67628_ Microwarped (distance 3). 67630_ Acquired Hpw. Transdimensional Reconstructor. 67630_ Warped through subspace, drawn to slip node. 67630_ EXIT=FOUND [Achievement: Torch] Map ----- +----------------------------------------------------+ | | | | | | | | | | | | | | | | | | | | | | | | | | | | | | | | | ?????????????????????????????????????????????????? | | ?????????????????????????????????????????????????? | | ?????????????????????????????????????????????????? | | ?????????????????????????????????????????????????? | | ?????????????????????????????????????????????????? | | ?????????????????????????????????????????????????? | | ????????????????????????###??????????????????????? | | ???????????????????????## ##?????????????????????? | | ???????????????????????# #?????????????????????? | | ???????????????????????# @ #?????????????????????? | | ??????????????????????## #?????????????????????? | | ??????????????????????# #?????????????????????? | | ??????????????????????# ##?????????????????????? | | ??????????????????????## #?????????????????????? | | ??????????????????????# #?????????????????????? | | ??????????????????????# ##?????????????????????? | | ??????????????????????# < #?????????????????????? | | ??????????????????????# ##?????????????????????? | | ??????????????????????## #??????????????????????? | | ???????????????????????####??????????????????????? | | ?????????????????????????????????????????????????? | | ?????????????????????????????????????????????????? | | ?????????????????????????????????????????????????? | | ?????????????????????????????????????????????????? | | ?????????????????????????????????????????????????? | | ?????????????????????????????????????????????????? | | ?????????????????????????????????????????????????? | | ?????????????????????????????????????????????????? | | ?????????????????????????????????????????????????? | | ?????????????????????????????????????????????????? | | ?????????????????????????????????????????????????? | | ?????????????????????????????????????????????????? | | ?????????????????????????????????????????????????? | | ?????????????????????????????????????????????????? | +----------------------------------------------------+ Best States ------------- Heat Dissipation 91 Coolant Potential 100 Energy Generation 65 Energy Capacity 1900 Matter Stores 550 Matter Capacity 550 Sight Range 20 Terrain Scan Density 10 Jamming Range 16 Armor Coverage 3200 Resistance: KI 30 Resistance: TH 50 Resistance: EX 25 Resistance: EM 90 Point Defense Rating 240 Weapon Cycling 30 Phase Shifting 15 Evasion (%) 55 Targeting Accuracy 12 Melee Accuracy 12 Target Analysis 8 Core Analysis 15 Armor Integrity Analysis 50 Recoil Reduction 6 Energy Filtering 50 Particle Charging 30 Kinecelleration 50 Offensive Hacking 26 Defensive Hacking 10 Relay Coupler Types 125 Relay Coupler Value 7 Item Schematics ----------------- Huge Storage Unit | -10/Materials | Hacked Cargo Storage Unit | -10/Materials | Hacked HERF Cannon | -6/Hub_04(d) | Hacked Biometal Heavy Treads | -4/Factory | Hacked Adv. Force Field | -3/Research | Hacked Exp. Optical Array | -3/Testing | Reported Nanoactuators | -3/Testing | Reported Spectral Analyzer | -3/Testing | Reported Lgt. Antimatter Cannon | -3/Testing | Reported Adv. Energy Well | -3/Testing | Reported Enh. Flexi-carbon Leg | -3/Testing | Reported Exp. Thermal Shield | -3/Testing | Reported Enh. Biometal Leg | -3/Testing | Reported Antigrav System | -3/Testing | Reported Hvy. Wave Gun | -3/Testing | Reported Cld. Nuclear Pulse Thruster | -3/Testing | Reported Prc. Energy Filter | -3/Testing | Reported Exp. Signal Interpreter | -3/Testing | Reported Helical Railgun | -3/Testing | Reported Lrn. Phase Cannon | -3/Testing | Reported Centrium Heavy Armor Plating | -3/Testing | Reported Adv. Micro-nuke Launcher | -3/Testing | Reported Quantum Shading Machine | -3/Testing | Reported Exp. Coolant Injector | -3/Testing | Reported Imp. Diametric Drive | -3/Testing | Reported Robot Schematics ------------------ None Fabricated ------------ Adv. Force Field | x2 | -3/Research Alien Tech Used ----------------- Dimensional Node Initializer High-powered Transdimensional Reconstructor Transdimensional Reconstructor Sigix Broadsword Core Stripper Integrated Reactor Microwarp Drive Integrity Redistributor LRC Matter Compressor LRC Boosters Achievements -------------- Torch Challenges ------------ None Game ------ Seed ThrusterGuidanceClaws Manual? 0 Play Time 10:32:00 Cumulative 349.5 hours Start 2021.05.01 @ 15:10:19 End 2021.05.02 @ 16:12:56 Sessions 5 Manual Loads 0 Difficulty Rogue Special Mode None Game No. 123 Rogue 122 Adventurer 1 Explorer 0 Win Type 1 Total 16 Types 7/3/2/1/0/0/3/0/0 Lore% 91 Gallery% 90 Achievement% 76 Wizard Run 0 Options --------- ASCII 1 Keyboard 1 Movement Numpad Keybinds 0 Fullscreen 0 Font 18/Smallcaps Map View 76x50 Tactical HUD 1 Map Filters NONE Filters NONE Steam 1 RUN: 52cf0863-b497-416c-a395-3e2ceaa5a6cb